Cogmind - Beta 13 X2 @@@ ROGUE MODE // 2024.02.03 @ 00:29:53 Player: Boris Result: Destroyed by Enhanced Hunter with Hypervelocity Linear Accelerator Performance ------------- Evolutions (9) 4500 Regions Visited (32) 6400 Robots Destroyed (967) 4835 Value Destroyed (52886) 52886 Prototype IDs (143) 2860 Alien Tech Used (12) 2400 Bonus (64933) 64933 TOTAL SCORE: 138814 Bonus ------- Triggered High Security 2500 High Alert Combat Kills 33354 Follower Combat Kills 4092 Entered Garrisons 800 Used RIF Installer 2000 Network Hubs Disabled 600 Aligned with FarCom 300 Built Enhanced Grunts 300 Met R17 at Cetus 500 Found Hidden Lab 3000 Met R17 at Research 2000 Scanned by Researcher 500 Pursued by Intercept 500 Destroyed MAIN.C Guards 500 Met MAIN.C 5000 Destroyed MAIN.C Shell 5000 Destroyed MAIN.C 10000 Met Architect 300 Destroyed A8 300 Destroyed A6 400 Friendly Fire -7013 Cogmind --------- Core Integrity 0/1850 Matter 305/425 Energy 100/100 System Corruption 6% Temperature Cool (0) Movement Core (50) Location -1/Access_0 Parts ------- > --- POWER (3) -------- (None) > --- PROPULSION (6) --- (None) > --- UTILITY (11) ----- Experimental Targeting Computer Experimental Target Analyzer Experimental Core Analyzer Improved Armor Integrity Analyzer Spacefold Activator > --- WEAPON (6) ------- (None) > --- INVENTORY (5) ---- Zero-point Reactor Advanced Force Field Hellfire Missile Launcher Sigix Broadsword Peak State ------------ > --- POWER ------------ Quantum Reactor Zero-point Reactor Zero-point Reactor > --- PROPULSION ------- Experimental Biometal Heavy Treads Experimental Biometal Medium Treads Experimental Biometal Medium Treads Experimental Biometal Medium Treads Experimental Biometal Medium Treads > --- UTILITY ---------- Huge Storage Unit Experimental Targeting Computer Experimental Targeting Computer Experimental Target Analyzer Experimental Core Analyzer Improved Armor Integrity Analyzer Experimental Weapon Cycler Advanced Phase Shifter Heavy Regenerative Plating AEGIS Remote Shield > --- WEAPON ----------- Multirail Multirail Multirail Multirail Multirail Multirail > --- INVENTORY -------- Zero-point Reactor Zero-point Reactor Experimental Biometal Heavy Treads Experimental Biometal Medium Treads Experimental Biometal Medium Treads Experimental Power Amplifier Advanced Coolant Injector Advanced Coolant Injector Experimental Energy Well Experimental Energy Well Experimental Targeting Computer Experimental Core Analyzer Precision Matter Filter Advanced Kinecellerator Experimental Phase Shifter Advanced Force Field Experimental System Purifier Long-range Tractor Beam Transdimensional Reconstructor Spacefold Activator Sigix Sheargun Potential Cannon Hellfire Missile Launcher [Rating: 274] Favorites ----------- Power Quantum Reactor Engine Heavy Ion Engine Power Core Enhanced Fission Core Reactor Quantum Reactor Propulsion Armored Heavy Treads Treads Armored Heavy Treads Leg Advanced Myomer Leg Wheel Wheel Utility Huge Storage Unit Device Advanced Weapon Cycler Storage Huge Storage Unit Processor Experimental Targeting Computer Hackware Improved Hacking Suite Protection Centrium Medium Armor Plating Artifact Spacefold Activator Weapon Advanced KE Penetrator Energy Gun Improved EM Shotgun Energy Cannon EMDS Ballistic Gun Advanced KE Penetrator Ballistic Cannon Hypercooled Linear Accelerator Launcher Hellfire Missile Launcher Special Weapon Guided Remote Datajack Slashing Weapon Sigix Broadsword Special Melee Weapon Improved Datajack Build | -11 -10 -9 -9 -9 -8 -8 -8 -8 -8 -8 -6 -6 -6 -6 -6 -6 -6 -6 -5 -5 -5 -5 -4 -4 -4 -3 -3 -3 -2 -1 -1 -1 ------- Run | Yrd Mat Mat Min Exi Min Mat Gar Sto Gar Rec Fac Was Fac Ext Cet Arc Hub Gar Fac Was Fac Gar Fac Arm Lab Res Qua Sec Res Acc Com Ac0 Slots Evolved 18 | . . 2 . . . 2 . . . . 4 . . . . . . . 2 . . . 2 . . 2 . . 2 2 . . Power 2 | . . . . . . . . . . . . . . . . . . . . . . . 1 . . . . . 1 . . . Propulsion 4 | . . . . . . . . . . . 2 . . . . . . . . . . . . . . 2 . . . . . . Utility 9 | . . . . . . 2 . . . . 2 . . . . . . . 2 . . . 1 . . . . . . 2 . . Weapon 3 | . . 2 . . . . . . . . . . . . . . . . . . . . . . . . . . 1 . . . Parts Attached 1072 | 6 6 17 1 30 9 15 65 16 7 6 29 13 13 24 5 21 37 22 15 23 9 13 62 124 12 48 101 108 81 18 84 32 Power 61 | 1 . 2 . 2 . . 1 1 1 . 1 . 1 . . . 1 1 . . . . 3 9 . 1 6 7 12 3 6 2 Engine 9 | 1 . 2 . 2 . . 1 1 1 . 1 . . . . . . . . . . . . . . . . . . . . . Core 6 | . . . . . . . . . . . . . 1 . . . 1 . . . . . 1 . . 1 2 . . . . . Reactor 46 | . . . . . . . . . . . . . . . . . . 1 . . . . 2 9 . . 4 7 12 3 6 2 Propulsion 102 | 2 3 3 1 5 4 . 22 2 . 2 2 2 2 . 2 . . 4 1 2 . . 2 3 . 4 10 . 7 . 12 5 Treads 73 | 2 3 3 1 3 . . 9 2 . . . 2 2 . 2 . . 1 1 2 . . 2 3 . 4 10 . 7 . 10 4 Leg 6 | . . . . 2 . . . . . . . . . . . . . 1 . . . . . . . . . . . . 2 1 Wheel 23 | . . . . . 4 . 13 . . 2 2 . . . . . . 2 . . . . . . . . . . . . . . Hover . | . . . . . . . . . . . . . . . . . . . . . . . . . . . . . . . . . Flight . | . . . . . . . . . . . . . . . . . . . . . . . . . . . . . . . . . Utility 522 | 1 2 2 . 7 2 8 14 4 2 . 10 5 4 12 1 8 21 8 5 10 1 12 38 83 5 25 49 64 44 11 47 17 Device 416 | . 1 1 . 2 1 6 14 1 1 . 5 3 2 5 . 6 13 7 1 9 1 9 31 78 3 23 45 52 37 8 36 15 Storage 16 | 1 1 1 . 1 1 . . . . . 1 1 2 2 . . . . . . . . . . . . 1 . 1 . 2 1 Processor 26 | . . . . 1 . . . 1 . . 2 . . 1 . . 2 . . 1 . . 1 2 . 1 2 5 3 . 4 . Hackware 22 | . . . . . . 2 . 1 1 . 2 . . 1 . 1 2 1 2 . . 1 1 3 1 1 . 2 . . . . Protection 37 | . . . . 3 . . . 1 . . . 1 . 3 1 1 4 . 2 . . 2 5 . 1 . . 3 3 2 5 . Artifact 5 | . . . . . . . . . . . . . . . . . . . . . . . . . . . 1 2 . 1 . 1 Weapon 387 | 2 1 10 . 16 3 7 28 9 4 4 16 6 6 12 2 13 15 9 9 11 8 1 19 29 7 18 36 37 18 4 19 8 Energy Gun 56 | 1 1 7 . 5 . 2 8 3 . 1 1 . . 1 . 4 . . 1 . . . 1 . . . 6 3 6 1 2 2 Energy Cannon 43 | . . . . . . . . . . . 1 1 3 4 1 . . . . 1 . . 3 2 3 3 6 10 1 . 3 1 Ballistic Gun 165 | 1 . 1 . 7 3 3 9 3 1 . 8 4 2 5 1 5 8 4 5 9 7 . 11 17 3 13 9 3 7 3 10 3 Ballistic Cannon 31 | . . . . . . . . . 1 . 1 . . . . 2 1 . . . . . 1 1 . . 8 11 2 . 3 . Launcher 22 | . . . . 2 . 1 2 1 1 . . . 1 1 . . . 1 . . . . . 2 . 1 2 5 1 . . 1 Special Weapon 19 | . . . . . . . 1 . . . 1 . . . . . . 1 1 . . . 2 2 1 . 3 5 1 . 1 . Impact Weapon . | . . . . . . . . . . . . . . . . . . . . . . . . . . . . . . . . . Slashing Weapon 48 | . . 2 . 1 . 1 8 2 1 2 3 1 . 1 . 2 6 3 2 1 1 1 1 5 . 1 2 . . . . 1 Piercing Weapon . | . . . . . . . . . . . . . . . . . . . . . . . . . . . . . . . . . Special Melee Weapon 3 | . . . . 1 . . . . . 1 1 . . . . . . . . . . . . . . . . . . . . . Unidentified Prototypes 75 | . . 1 . . . . . 1 . . 2 . 5 1 3 . 2 . . 1 . . 1 . 5 4 9 12 7 1 17 3 Corrupted Parts 8 | . . . . 1 . . . . . . 1 . . 1 1 . . . . . . . . . . . . 2 1 . 1 . System Corruption 28 | . . . . 1 . . . . . . 4 . . 1 7 . . . . . . . . . . . . 10 4 . 1 . Parts Lost 59 | . 1 1 . 9 1 2 1 3 1 . 1 . . 2 . . 2 2 . 1 . . . 4 . . 3 1 4 1 . 19 Power 5 | . . . . . . . 1 . . . . . . . . . 1 . . . . . . 1 . . . . 1 . . 1 Propulsion 12 | . . . . 2 . . . 1 . . 1 . . . . . . 1 . . . . . . . . . . . . . 7 Utility 17 | . . . . 1 . 1 . 1 1 . . . . . . . . . . . . . . 1 . . 3 1 2 1 . 5 Weapon 25 | . 1 1 . 6 1 1 . 1 . . . . . 2 . . 1 1 . 1 . . . 2 . . . . 1 . . 6 Highest Loss Streak 15 | . 1 1 . 4 1 2 1 3 1 . 1 . . 1 . . 1 1 . 1 . . . 1 . . 1 1 2 1 . 15 To Critical Strikes 13 | . . . . 3 . . . . . . . . . . . . . . . . . . . . . . . . . . . 10 Average Slot Usage (%) 88 | . 98 99 100 89 97 96 99 95 85 99 89 86 85 85 85 81 77 89 86 87 87 87 88 87 81 86 85 82 81 79 82 88 Engine 3 | . 14 11 11 9 11 9 9 9 9 9 6 6 5 . . . . . . . . . . . . . . . . . . . Reactor 4 | . . . . . . . . . . . . . . . . . . 3 5 5 5 5 7 9 10 7 6 9 11 11 10 10 Treads 13 | . 27 21 22 21 . . . 5 9 4 . 4 12 13 12 13 13 8 10 11 11 11 9 9 10 16 18 18 12 11 13 17 Wheel 2 | . . . . . 14 18 17 12 9 13 18 12 . . . . . 5 . . . . . . . . . . . . . . Device 11 | . 12 11 11 7 8 17 22 10 15 18 12 8 12 8 13 13 7 13 6 5 11 8 6 7 9 7 13 13 16 19 13 15 Storage 6 | . 14 11 11 10 11 9 9 9 9 9 12 6 6 6 6 6 6 6 5 5 5 5 5 5 5 4 4 4 4 3 3 3 Processor 11 | . . . . 3 2 . . 5 1 . 4 13 13 15 18 13 16 20 17 22 17 17 20 20 15 13 11 14 14 11 15 18 Hackware 4 | . . . . . . 9 4 9 10 9 6 6 6 6 . . 2 . 10 11 11 11 10 12 12 14 10 5 . . . . Energy Gun 7 | . 14 39 33 19 4 4 21 19 3 8 1 . . . 6 9 . . . . . . . . . . . . 6 . 1 . Energy Cannon 1 | . . . . . . . . . . . 1 . 1 5 . . . . . . . . . . 4 . . 2 2 3 1 . Ballistic Gun 12 | . 14 . . 10 26 20 7 5 10 9 16 23 24 19 18 6 11 19 17 22 21 20 18 18 5 15 7 3 8 14 15 16 Slashing Weapon 2 | . . 3 11 . 11 7 5 7 1 8 4 1 . . . 4 3 5 1 . . 2 1 1 5 2 4 4 1 . . . Naked Turns . | . . . . . . . . . . . . . . . . . . . . . . . . . . . . . . . . . Heaviest Build 239 | 14 30 60 59 67 99 103 107 103 154 100 116 125 129 131 121 165 186 124 130 126 127 133 187 181 148 161 192 182 194 227 239 215 Greatest Support 245 | 40 40 40 43 60 60 38 40 36 12 20 52 140 140 140 160 160 160 160 150 150 150 150 150 150 140 196 196 180 225 225 245 245 Greatest Overweight (x) 12 | 1 1 1 1 1 9 3 5 8 12 9 5 3 1 . . 1 1 11 1 . . . 1 1 1 1 1 1 1 1 1 1 Average Overweight (x) . | . . . 1 . 2 2 3 4 10 5 2 1 . . . . . 1 . . . . . . . . . . . . . . Largest Inventory Capacity 25 | 8 15 20 20 20 25 25 25 25 25 25 25 25 25 25 25 25 25 25 25 25 25 25 25 25 25 25 25 25 25 25 25 25 Average Capacity 23 | 7 14 19 20 19 23 25 25 25 25 25 25 25 25 25 25 25 25 25 25 25 25 25 25 25 25 25 25 25 25 25 25 23 Most Carried 25 | 3 15 20 20 20 25 25 25 25 25 25 25 25 25 25 25 25 25 25 25 25 25 25 25 25 25 25 25 25 25 25 25 25 Average Carried 23 | 1 11 19 19 16 22 23 24 24 24 24 24 24 24 24 24 24 24 24 24 24 24 24 24 24 22 24 24 24 24 24 23 21 Final Capacity 25 | 8 15 20 20 20 25 25 25 25 25 25 25 25 25 25 25 25 25 25 25 25 25 25 25 25 25 25 25 25 25 25 25 5 Final Carried 25 | 3 15 20 20 20 25 25 25 25 25 25 23 25 25 25 25 25 25 25 25 25 25 25 25 25 25 25 25 25 25 25 25 5 Class Distribution -------------------- 49% | Scavenger-Gunner 17% | Gunner 13% | Scavenger-Executioner 7% | Mutant 4% | Hacker-Gunner Dominant Class ---------------- Mutant | -10/Materials Gunner | -9/Materials Gunner | -9/Mines Gunner | -9/Exiles Scavenger-Gunner | -8/Mines Scavenger-Mutant | -8/Materials Scavenger-Gunner | -8/Garrison Mutant | -8/Storage Gunner | -8/Garrison Mutant | -8/Recycling Scavenger-Skirmisher | -6/Factory Scavenger-Gunner | -6/Waste Gunner | -6/Factory Scavenger-Gunner | -6/Extension Scavenger-Gunner | -6/Cetus Scavenger-Gunner | -6/Archives Scavenger-Gunner | -6/Hub_04(d) Scavenger-Gunner | -6/Garrison Scavenger-Gunner | -5/Factory Scavenger-Gunner | -5/Waste Scavenger-Gunner | -5/Factory Scavenger-Gunner | -5/Garrison Scavenger-Gunner | -4/Factory Scavenger-Gunner | -4/Armory Hacker-Gunner | -4/Lab Hacker-Gunner | -3/Research Scavenger-Gunner | -3/Quarantine Scavenger-Gunner | -3/Section 7 Scavenger-Executioner | -2/Research Scavenger-Executioner | -1/Access Scavenger-Executioner | -1/Command Scavenger-Executioner | -1/Access_0 Resources | -11 -10 -9 -9 -9 -8 -8 -8 -8 -8 -8 -6 -6 -6 -6 -6 -6 -6 -6 -5 -5 -5 -5 -4 -4 -4 -3 -3 -3 -2 -1 -1 -1 ----------- Run | Yrd Mat Mat Min Exi Min Mat Gar Sto Gar Rec Fac Was Fac Ext Cet Arc Hub Gar Fac Was Fac Gar Fac Arm Lab Res Qua Sec Res Acc Com Ac0 Matter Collected 33795 | 275 238 182 210 799 256 372 1164 243 64 177 701 508 1016 2154 374 607 1185 736 462 491 278 626 1499 3795 185 1318 3492 3685 2891 975 2034 803 Remotely 10687 | . . . . . . . . . . . . . . . . 309 82 253 . . . 371 678 1759 . 479 1748 1471 1663 280 941 653 Salvage Created 68197 | 117 579 2345 102 362 562 646 1196 409 168 312 1223 740 1194 1695 573 647 3139 1156 837 2140 303 1004 2455 5643 270 1479 3795 11429 11492 4809 3682 1694 Parts 2619 | 6 30 139 9 62 39 39 59 21 27 15 57 14 54 91 24 41 134 54 43 52 18 38 112 269 8 64 247 186 331 136 102 98 Haulers Intercepted 24 | . 2 5 . . . 1 . . . . 4 . 1 . . . 2 . 1 . 2 . 1 . . 3 . 1 . 1 . . Recyclers Shooed 30 | . 2 7 1 . . . . 1 . . 3 . 7 3 . . 1 . 2 . . . 2 . . . 1 . . . . . Parts Field Recycled . | . . . . . . . . . . . . . . . . . . . . . . . . . . . . . . . . . Retrieved Matter . | . . . . . . . . . . . . . . . . . . . . . . . . . . . . . . . . . Parts Self-Destructed . | . . . . . . . . . . . . . . . . . . . . . . . . . . . . . . . . . Prevented . | . . . . . . . . . . . . . . . . . . . . . . . . . . . . . . . . . Kills | -11 -10 -9 -9 -9 -8 -8 -8 -8 -8 -8 -6 -6 -6 -6 -6 -6 -6 -6 -5 -5 -5 -5 -4 -4 -4 -3 -3 -3 -2 -1 -1 -1 ------- Run | Yrd Mat Mat Min Exi Min Mat Gar Sto Gar Rec Fac Was Fac Ext Cet Arc Hub Gar Fac Was Fac Gar Fac Arm Lab Res Qua Sec Res Acc Com Ac0 Combat Hostiles Destroyed 825 | . 7 35 . 2 5 9 41 7 12 2 3 . 17 23 7 4 46 20 9 6 2 14 27 81 3 11 43 150 149 46 25 19 Melee 14 | . . . . . . . . 3 . . . . . . . . . . . . . . . . 1 . 2 7 1 . . . Guns 606 | . 7 27 . 2 2 7 25 2 7 1 1 . 10 19 7 2 25 20 9 6 2 14 23 74 1 11 38 97 116 24 8 19 Cannons 61 | . . . . . . . . . 4 1 . . . 4 . 2 21 . . . . . 4 1 1 . 2 18 2 . 1 . AOE 73 | . . 7 . . 3 2 15 1 1 . 1 . 7 . . . . . . . . . . 6 . . . 17 8 1 4 . Classes Destroyed 29 | 2 5 5 . 3 1 1 1 1 . . 2 1 1 . . . . . 1 1 . . . 1 . . 1 2 . . . . Worker 31 | . 1 4 3 . 7 1 . 1 . . 1 . 2 . . . 3 . . . . . . . . 2 3 . . 2 1 . Builder 35 | . 1 1 . . . 3 . 1 . 2 1 . 5 3 . . 3 . 1 . . . 3 . . . 1 2 1 7 . . Tunneler 13 | 1 . . 1 . 7 . . . . . 1 . 1 . . . . . . . . . . . . . . . . 2 . . Hauler 24 | . 2 5 . . . 1 . . . . 4 . 1 . . . 2 . 1 . 2 . 1 . . 3 . 1 . 1 . . Recycler 30 | 1 1 4 . . 2 . . . . 2 3 . 3 1 . . 1 . . . . . 2 . . 1 3 1 . 2 3 . Carrier 2 | . . . . . . . . . . . . . . . . . . . 1 . . . . . . . . . 1 . . . Mechanic 15 | . . . . . . 1 . 2 . . . . 1 . . . . . . . . . . 1 . . . 3 5 2 . . Operator 18 | . . 1 1 . . 1 . 1 . . . . . . . 9 1 . . . . . . 3 . . 1 . . . . . Turret 1 | . . . . 1 . . . . . . . . . . . . . . . . . . . . . . . . . . . . Watcher 31 | . 1 5 . . . 1 . . . . 2 . . 1 . . 2 . 1 . . . 3 4 . 2 1 5 1 1 1 . Swarmer 73 | . . 7 . . 4 2 6 . 10 . . . 3 2 . . . 3 . . . . 5 8 . 1 . 11 3 4 4 . Saboteur 27 | . . . . . . . . . . . . . . . . . . . . . . . . 4 . . 1 6 14 1 1 . Grunt 279 | . 7 15 . . . 2 9 3 . . 1 . 3 9 2 . 18 7 1 . . 5 8 31 3 6 12 56 50 26 5 . Brawler 40 | . . 2 . . . . . . . . . . . . . . 4 . . . . 2 . 4 . . . 14 7 4 3 . Duelist 27 | . . 1 . . . . . 2 . . . . . 2 . . 2 . 1 . . . . 3 . . 2 4 7 2 1 . Protector 25 | . . . . . . . . 1 . . . . 1 1 . . 4 1 . . . . . 2 . . 1 2 9 2 1 . Researcher 12 | . . . . . . . . . . . . . . . . . . . . . . . . . . . 1 11 . . . . Sentry 74 | . . 10 . . . 4 5 1 1 2 1 . 2 6 . 4 4 3 4 . . 3 5 5 . 3 3 7 1 . . . Demolisher 3 | . . . . . . . . . . . . . . . . . . 1 . . . . . 1 . . . . . . 1 . Specialist 12 | . . . . . . . . . . . . . 4 . . . 2 . . . . . . 4 . . . . 2 . . . Hunter 52 | . . . . . 1 1 4 . 1 . 2 . 1 . . . 1 2 1 . 2 2 4 9 . . 2 2 11 4 2 . Programmer 105 | . . . . . . . . . . . 1 . 3 1 . . 1 3 2 . . 1 4 12 . 1 10 30 35 . 1 . Heavy 3 | . . . . . . . . . . . 1 . . . . . 1 . . . . . . 1 . . . . . . . . Behemoth 12 | . . . . . . . 1 . . . . . . 2 . . . 1 . . . 1 1 . . . . 2 . 3 1 . Compactor 6 | . . . . . . . . . . . . . . . . . . . . 6 . . . . . . . . . . . . Cetus Guard 5 | . . . . . . . . . . . . . . . 5 . . . . . . . . . . . . . . . . . Quarantine Guard 12 | . . . . . . . . . . . . . . . . . . . . . . . . . . . 12 . . . . . M Guard 2 | . . . . . . . . . . . . . . . . . . . . . . . . . . . . . . . 2 . Enhanced Grunt 15 | . . . . . . . . . . . . . . . . . 1 . . . . . . . . . . . . . . 14 Enhanced Hunter 4 | . . . . . . . . . . . . . . . . . . . . . . . . . . . . . . . . 4 Lightning 9 | . . . . . . . . . . . . . . . . . 9 . . . . . . . . . . . . . . . Tracker 2 | . . . . . . . . . . . . . . . . . . . . . . . . . . . . 2 . . . . Combat Programmer 4 | . . . . . . . . . . . . . . . . . . . . . . . . . . . . 2 . . 2 . Investigator 3 | . . . . . . . . . . . . . . . . . . . . . . . . . . . . 1 2 . . . Striker 14 | . . . . . . . . . . . . . . . . . . . . . . . . . . . . 6 8 . . . Executioner 8 | . . . . . . . . . . . . . . . . . . . . . . . . . . . . 6 2 . . . Zionite 6 | . . . . 6 . . . . . . . . . . . . . . . . . . . . . . . . . . . . Assembled 17 | . . . . 1 . . 16 . . . . . . . . . . . . . . . . . . . . . . . . . Surgeon 1 | . . . . . . . . . . . . . . . . . . . . 1 . . . . . . . . . . . . Wasp 3 | . . . . . . . . . . . . . . . . . . . . 3 . . . . . . . . . . . . Thug 1 | . . . . . . . . . . . . . . . . . . . . 1 . . . . . . . . . . . . Butcher 2 | . . . . . . . . . . . . 1 1 . . . . . . . . . . . . . . . . . . . Martyr 4 | . . . . . . . . . . . . 2 . . . . . . . 2 . . . . . . . . . . . . Guerrilla 1 | . . . . . . . . . . . . . . . 1 . . . . . . . . . . . . . . . . . Best Kill Streak 46 | 2 4 8 1 3 4 7 13 9 4 1 2 . 15 5 3 4 7 10 4 4 1 8 6 7 3 4 13 32 46 19 10 9 Combat Bots Only 44 | . 3 4 . 1 4 4 13 4 4 1 1 . 8 4 3 3 6 10 3 4 1 8 6 7 3 4 13 31 44 13 10 9 Max Kills in Single Turn 5 | 1 1 4 1 2 3 3 3 2 2 1 1 1 5 2 2 1 2 2 1 1 1 2 2 4 1 2 2 4 3 3 4 2 Gunslinging 2 | . . 1 . . . 1 1 . . . . . . . 1 . 1 1 . . . . 1 2 . . 1 2 2 1 . 1 Exploded 4 | . . 2 . . 3 2 3 1 1 . 1 . 3 . . . . . . . . . . 3 . . . 4 1 1 3 . Melee 1 | . . . . . . . . 1 . . . . . . . . . . . . . . . . 1 . 1 1 1 . . . Uniques/NPCs Destroyed 8 | . . . . 4 . . . . . . . . . . 1 . . . . . . . . . . . . . . . 2 1 8R-AWN (-9/Exiles) EX-DEC (-9/Exiles) EX-HEX (-9/Exiles) EX-BIN (-9/Exiles) A7 (-6/Cetus) MAIN.C Shell (-1/Command) MAIN.C (-1/Command) A8 (-1/Access_0) Combat | -11 -10 -9 -9 -9 -8 -8 -8 -8 -8 -8 -6 -6 -6 -6 -6 -6 -6 -6 -5 -5 -5 -5 -4 -4 -4 -3 -3 -3 -2 -1 -1 -1 -------- Run | Yrd Mat Mat Min Exi Min Mat Gar Sto Gar Rec Fac Was Fac Ext Cet Arc Hub Gar Fac Was Fac Gar Fac Arm Lab Res Qua Sec Res Acc Com Ac0 Hostile Shots Fired 3316 | . 37 70 . 83 19 26 113 49 26 6 64 . 52 181 9 6 152 75 20 1 3 32 99 243 14 28 186 345 493 196 125 563 Missed 984 | . 7 23 . 11 6 9 30 11 12 . 27 . 20 49 5 1 54 20 7 . . 2 18 57 1 13 59 67 112 64 42 257 Damage Taken 39376 | . 412 647 . 1362 186 206 1295 622 162 89 371 . 504 2049 100 113 2133 731 319 36 39 552 1381 3131 243 381 1839 3590 6752 2045 2095 5991 Core 4185 | . 84 104 . 161 65 37 250 139 9 30 99 . 46 77 . . 154 103 . . 23 19 31 242 17 . 119 409 220 184 138 1425 Absorbed by Shields 10565 | . . . . 21 . . 13 . . . . . . 24 44 . . . . . . . . 244 . . 941 2358 1605 784 800 3731 Reduced by Siege Mode 2018 | . . . . . . . . . . . . . 5 206 15 6 132 34 13 . . 20 146 239 14 18 60 215 671 . 196 28 Ignored by Resistances 3294 | . . . . . . . . . . . . . . . . . 348 . . . . . . 30 . . 577 935 1042 301 61 . Regen/Repaired (Parts) 17039 | . 311 81 . . . . . . . . . 336 318 923 . . . . 1725 135 156 23 334 1249 . 920 1238 5818 2855 . 457 160 Core Remaining (%) 56 | 100 66 . . . 17 . . . . 15 . . . . . . . 43 . . . 95 . . 74 . . 28 67 . . . Volleys Fired 1998 | 5 61 55 . 94 11 24 75 20 14 9 44 13 47 97 23 61 87 35 24 22 7 28 77 165 72 35 94 257 232 58 69 83 Largest 6 | 2 2 4 . 4 3 4 4 4 3 2 4 3 4 4 4 4 4 4 4 4 4 4 4 4 2 5 4 3 4 5 6 6 Hottest 398 | 70 70 175 . 153 83 169 252 189 133 70 123 95 195 260 210 170 135 135 133 138 145 145 193 150 120 250 214 250 276 398 325 380 Shots Fired 5429 | 10 118 200 . 196 24 71 211 48 29 14 101 17 142 269 88 77 241 102 74 81 27 111 209 526 77 121 280 492 782 168 186 337 Gun 4858 | 10 118 200 . 186 23 69 195 46 16 12 94 17 127 234 85 74 171 100 72 81 27 111 187 504 10 116 255 358 748 144 165 303 Cannon 474 | . . . . . . . . . 11 2 6 . 5 35 3 3 70 . . . . . 13 11 67 5 25 116 33 24 19 26 Launcher 64 | . . . . 10 1 2 16 2 2 . . . 10 . . . . . . . . . . 3 . . . 10 . . . 8 Special 33 | . . . . . . . . . . . 1 . . . . . . 2 2 . . . 9 8 . . . 8 1 . 2 . Kinetic 4015 | 5 61 4 . 157 16 59 83 15 23 11 90 17 127 234 63 73 241 100 72 81 27 111 191 508 10 116 258 247 455 143 138 279 Thermal 454 | 5 57 . . . . 10 112 31 2 . . . 2 . 22 4 . . . . . . 9 7 67 4 12 8 33 24 19 26 Explosive 64 | . . . . 10 1 2 16 2 2 . . . 10 . . . . . . . . . . 3 . . . 10 . . . 8 Electromagnetic 380 | . . 196 . 29 7 . . . 2 3 10 . 3 35 3 . . . . . . . . . . 1 10 81 . . . . Slashing 483 | . . . . . . . . . . . . . . . . . . . . . . . . . . . . 138 293 1 27 24 Robot Hit Streak 55 | 4 18 11 . 15 6 8 16 13 9 14 16 7 9 24 30 9 46 36 27 36 10 21 31 29 22 27 21 47 55 26 54 36 Robot Miss Streak 7 | 2 6 5 . 5 2 3 3 3 2 2 6 2 5 3 3 3 4 2 2 1 2 2 3 5 . 4 2 3 2 3 2 7 Penetration Max 2 | . . . . 1 . 1 . 1 . . 2 2 1 2 1 1 2 1 1 1 . 1 1 2 2 1 2 2 2 2 1 1 Secondary Targets 156 | . 2 5 . . . 2 3 . 1 . . . 1 3 4 . 2 6 1 . . . 4 18 . 2 9 31 47 6 1 8 Max Gunslinging Chain 3 | . 1 1 . . . 1 1 . 1 . . . 1 1 1 . 1 1 1 . . . 1 2 . 1 1 2 3 1 1 1 Autonomous 97 | . . . . . . . . . 11 2 . . . . . 3 70 . . . . . 7 4 . . . . . . . . Shots Hit Robots 4088 | 7 76 129 9 124 35 43 146 45 17 22 75 20 74 217 77 50 204 87 59 66 17 74 120 348 17 77 212 453 635 122 149 282 Core Hits 2717 | 3 28 91 3 43 16 28 76 25 10 6 35 10 63 80 36 28 101 37 29 29 8 32 68 214 10 43 117 345 468 161 178 296 Critical Kills 207 | . 1 . . 1 . 3 . . . . 4 3 . 1 2 10 12 3 6 2 4 8 18 38 1 11 34 16 6 11 1 11 Critical Parts Destroyed 245 | . . . . 3 . 5 1 1 . . 2 5 . 2 . 9 20 5 2 3 4 16 14 46 3 14 31 17 12 12 2 16 Critical Strikes 556 | . 1 2 . 5 . 11 4 2 1 . 6 10 . 4 5 20 40 10 9 7 8 25 34 84 4 26 72 66 29 23 5 43 Burn 9 | . . . . . . 3 2 1 . . . . . . 3 . . . . . . . . . . . . . . . . . Meltdown 1 | . . . . . . . . . . . . . . . . . . . . . . . . . . . . 1 . . . . Destroy 481 | . 1 . . 5 . 8 1 1 . . 6 8 . 4 2 19 32 10 9 7 8 25 34 84 4 26 68 32 19 23 3 42 Blast 13 | . . . . . . . . . 1 . . . . . . 1 8 . . . . . . . . . 1 2 . . . . Corrupt 15 | . . 2 . . . . . . . . . . . . . . . . . . . . . . . . 2 11 . . . . Sever 37 | . . . . . . . 1 . . . . 2 . . . . . . . . . . . . . . 1 20 10 . 2 1 Melee Attacks 325 | . . 3 9 4 19 10 34 22 2 11 15 9 . 7 . . 13 26 5 4 1 4 6 8 6 4 32 69 2 . . . Impact . | . . . . . . . . . . . . . . . . . . . . . . . . . . . . . . . . . Slashing 318 | . . 3 9 . 19 10 34 22 2 9 14 9 . 7 . . 13 26 5 4 1 4 6 8 6 4 32 69 2 . . . Piercing . | . . . . . . . . . . . . . . . . . . . . . . . . . . . . . . . . . Sneak Attacks 91 | . . 1 9 4 18 2 . 3 . 10 9 9 . . . . 3 4 2 4 . . . 1 . 2 7 3 . . . . Combat Hostiles 1 | . . . . . . . . . . 1 . . . . . . . . . . . . . . . . . . . . . . Follow-up Attacks . | . . . . . . . . . . . . . . . . . . . . . . . . . . . . . . . . . Damage Inflicted 156924 | 83 958 2869 631 2041 1537 987 4296 1617 913 765 2097 979 4680 5730 1822 1245 9168 2832 1587 2173 321 1754 3294 9593 497 1528 4172 32171 28057 6430 6779 13318 Guns 105031 | 83 948 2043 . 1706 148 664 2332 514 159 187 1395 435 2174 4664 1767 985 4168 2533 1373 1817 292 1754 2670 7969 136 1306 1974 18116 24264 3369 4652 8434 Cannons 17679 | . . . . . . . . . 669 71 81 . 86 857 55 260 4625 . . . . . 623 335 298 51 928 4833 563 670 493 2181 Explosions 21180 | . . 743 . 335 233 111 1397 518 85 . 179 . 2339 126 . . . . . . . . . 1165 . . 75 3994 3230 2383 1564 2703 Melee 12681 | . . 80 631 . 1156 212 567 585 . 507 442 544 . . . . 340 299 199 356 . . . 106 63 171 1195 5228 . . . . Ramming 353 | . 10 3 . . . . . . . . . . 81 83 . . 35 . 15 . 29 . 1 18 . . . . . 8 70 . Kinetic 89999 | 33 526 27 . 1612 91 554 1037 167 798 200 1308 435 2174 4664 1330 1224 8793 2533 1373 1817 292 1754 3243 8304 136 1306 2208 12573 14107 3337 3957 8086 Thermal 18848 | 50 422 743 . . . 110 1295 347 . . 179 . 74 126 437 21 . . . . . . 50 . 298 . 382 1393 3793 3053 2057 4018 Explosive 10471 | . . . . 335 233 111 1397 518 85 . . . 2339 . . . . . . . . . . 1165 . . . 3422 . . . 866 Electromagnetic 6850 | . . 2016 . 94 57 . . . 30 58 168 . 12 857 55 . . . . . . . . . . 51 387 3065 . . . . Impact . | . . . . . . . . . . . . . . . . . . . . . . . . . . . . . . . . . Slashing 30403 | . . 80 631 . 1156 212 567 585 . 507 442 544 . . . . 340 299 199 356 . . . 106 63 171 1195 11718 10157 32 695 348 Piercing . | . . . . . . . . . . . . . . . . . . . . . . . . . . . . . . . . . Highest Corruption 35 | . . . . 1 1 . . . . . 4 4 6 7 14 14 18 20 1 1 1 1 1 6 6 1 3 35 29 . 4 6 Average Corruption 7 | . . . . 1 1 . . . . . 4 4 4 6 8 11 13 19 1 1 1 1 1 2 6 1 2 10 22 . 3 1 Corruption Purged 19 | . . . . . . . . . . . . . . . . 14 . . . . . . . . . . . . . . 5 . Corruption Blocked 150 | . . . . . . . . . . . . . . . . . . . . . . . . . . . 15 135 . . . . Effects 736 | . . . . 1 8 . . . . . 4 12 22 68 14 13 50 54 5 7 7 9 4 53 32 . 57 133 142 . 34 7 Message Errors 168 | . . . . . 3 . . . . . 1 4 6 17 2 4 9 6 3 4 3 . 2 11 5 . 15 31 31 . 9 2 Matter Fused 169 | . . . . . 2 . . . . . 1 4 2 16 3 3 10 16 2 1 . . 1 16 9 . 13 28 34 . 7 1 Heat Flow Errors 78 | . . . . . . . . . . . 1 2 3 5 . 1 7 5 . . . 1 . 5 6 . 7 19 9 . 6 1 Energy Discharges 79 | . . . . . 1 . . . . . . . 3 9 2 2 8 5 . . 1 3 1 5 4 . 5 12 15 . 2 1 Parts Rejected 4 | . . . . . 1 . . . . . . . . . . . . . . 1 . . . . . . 1 . . . . 1 Parts Fused 7 | . . . . . . . . . . . . . 1 . . . . 1 . . . . . 1 1 . 1 . 2 . . . Data Loss (minor) 86 | . . . . 1 . . . . . . 1 2 4 8 2 2 7 11 . . 2 2 . 5 2 . 6 9 19 . 3 . Data Loss (major) 50 | . . . . . . . . . . . . . 3 4 1 1 5 5 . 1 . . . 4 1 . 4 9 9 . 3 . Misfires 28 | . . . . . . . . . . . . . . 2 1 . . 3 . . 1 2 . 3 2 . 2 6 5 . 1 . Alerts 18 | . . . . . 1 . . . . . . . . 2 1 . . 1 . . . . . 1 1 . 1 3 5 . 2 . Weapon Failures 49 | . . . . . . . . . . . . . . 5 2 . 4 1 . . . 1 . 2 1 . 2 16 13 . 1 1 Overload Shots . | . . . . . . . . . . . . . . . . . . . . . . . . . . . . . . . . . Overflow Damage 3150 | . . 42 214 . 269 38 68 14 240 151 66 39 37 9 . . 356 27 65 66 . . 33 86 1 65 253 544 37 3 51 376 Projectiles 1233 | . . . . . . . . . 240 . . . . 7 . . 251 . . . . . 33 . 1 . 102 287 22 3 . 287 Explosions 504 | . . 42 . . . . 68 14 . . . . 37 . . . . . . . . . . 63 . . . 176 15 . . 89 Melee 1413 | . . . 214 . 269 38 . . . 151 66 39 . 2 . . 105 27 65 66 . . . 23 . 65 151 81 . . 51 . Knockbacks 41 | . . 1 . . . . . . 2 . . . . . . . 28 . . . . . 4 . . . . 6 . . . . Impact 1 | . . 1 . . . . . . . . . . . . . . . . . . . . . . . . . . . . . . Kinetic 32 | . . . . . . . . . 2 . . . . . . . 22 . . . . . 2 . . . . 6 . . . . Secondary 8 | . . . . . . . . . . . . . . . . . 6 . . . . . 2 . . . . . . . . . Self-Inflicted Damage 679 | . . 51 . 37 19 17 . . . . . . . . . . . . . . . . . . . . . 35 154 101 7 258 Shots 29 | . . 2 . 1 1 1 . . . . . . . . . . . . . . . . . . . . . 1 11 8 1 3 Rammed 28 | . 3 1 . . . . . . . . . . 6 8 . . 2 . 1 . 3 . 1 . . . . . . 1 2 . Targets Rammed 29 | . 3 1 . . . . . . . . . . 6 8 . . 2 . 1 . 3 . 1 1 . . . . . 1 2 . Kicked . | . . . . . . . . . . . . . . . . . . . . . . . . . . . . . . . . . Crushed 1 | . . . . . . . . . . . . . . . . . . . . . . . . 1 . . . . . . . . Highest Temperature 595 | 45 216 234 . 334 45 203 370 182 40 . 84 150 209 332 197 174 378 210 181 282 100 364 372 278 322 205 261 356 595 355 538 224 Average Temperature 89 | 23 108 69 . 94 26 80 99 72 25 . 48 69 107 98 104 29 93 31 71 103 44 108 103 77 72 71 76 67 118 125 128 72 Received Heat Transfer 4659 | . 234 183 . 40 . 54 297 297 9 9 96 . 39 783 4 9 309 156 9 . . 171 454 519 84 18 103 204 264 218 96 . Effects 18 | . . . . 1 . . 3 . . . . . . . . . 1 . . . . . 1 . . . . 1 6 1 4 . Shutdowns 2 | . . . . . . . . . . . . . . . . . . . . . . . . . . . . . . 1 1 . Energy Bleed 4 | . . . . 1 . . 1 . . . . . . . . . 1 . . . . . . . . . . 1 . . . . Interference 5 | . . . . . . . 2 . . . . . . . . . . . . . . . . . . . . . . . 3 . Matter Decay 1 | . . . . . . . . . . . . . . . . . . . . . . . . . . . . . 1 . . . Short Circuit 2 | . . . . . . . . . . . . . . . . . . . . . . . 1 . . . . . 1 . . . Damage (major) 4 | . . . . . . . . . . . . . . . . . . . . . . . . . . . . . 4 . . . Siege Activations 128 | . . . . . . . . . . . . . 5 11 3 2 7 8 8 6 . 4 9 21 1 3 5 14 13 2 3 3 Total Turns 2930 | . . . . . . . . . . . . . 44 204 43 22 105 55 65 95 . 68 125 346 22 28 93 560 494 20 510 31 Longest Duration 464 | . . . . . . . . . . . . . 20 66 22 19 26 26 14 56 . 40 21 49 22 12 31 347 176 12 464 14 Robots Corrupted 17 | . . 2 . . . . . . . . 1 . . . . . . . . . . . . . . . 2 12 . . . . Combat Hostiles 12 | . . 1 . . . . . . . . 1 . . . . . . . . . . . . . . . 1 9 . . . . Parts Fried 57 | . . 15 . . . . . . . . 2 . . 4 1 . 1 . . . . . . 3 . . 4 25 1 . 1 . Impact Corruptions 4 | . . . . . . . . . . . . . 1 1 . . . . . . . . . . . . . . . . 2 . Robots Melted 63 | . . . . . . . 1 1 . . . . . . . . . . . . . . . . . . . 3 23 22 13 . Combat Hostiles 59 | . . . . . . . 1 1 . . . . . . . . . . . . . . . . . . . 2 22 21 12 . Parts Melted 243 | . . . . . . 4 3 1 . . . . . 1 1 . . . . . . 2 . . 1 2 3 7 110 71 37 . Heat Transferred 45606 | 148 1056 1050 . . . 481 2828 822 . . 150 . . 150 963 37 . . . . . . 74 . 259 . 383 1454 15135 12044 7884 688 Parts Sabotaged 13 | . . . . . . . . . . . . . . . . . . . . . . . . 5 . . . 3 5 . . . Parts Stolen . | . . . . . . . . . . . . . . . . . . . . . . . . . . . . . . . . . Parts Stripped . | . . . . . . . . . . . . . . . . . . . . . . . . . . . . . . . . . Power Chain Reactions 17 | . . 12 . . . . . . . . 1 . . 2 . . . . . . . . . . . . 1 . . 1 . . Missiles Intercepted . | . . . . . . . . . . . . . . . . . . . . . . . . . . . . . . . . . Alert | -11 -10 -9 -9 -9 -8 -8 -8 -8 -8 -8 -6 -6 -6 -6 -6 -6 -6 -6 -5 -5 -5 -5 -4 -4 -4 -3 -3 -3 -2 -1 -1 -1 ------- Run | Yrd Mat Mat Min Exi Min Mat Gar Sto Gar Rec Fac Was Fac Ext Cet Arc Hub Gar Fac Was Fac Gar Fac Arm Lab Res Qua Sec Res Acc Com Ac0 Peak Influence 6371 | 10 228 590 109 . 148 358 1647 1157 1091 529 693 118 1279 1224 989 784 1236 1371 999 320 215 802 679 2028 . 163 888 3881 6371 4967 3735 . Initial 3822 | . 6 7 109 . . . 232 785 752 490 550 118 . 571 583 395 83 865 719 320 . 150 372 332 . . 75 199 2182 3822 3178 . Average 1047 | 6 76 363 41 . 60 183 982 965 964 230 475 83 496 878 813 491 655 1210 849 192 83 590 449 847 . 71 381 1558 5340 4232 3430 . Maximum Alert Level 5 | . 1 2 . . . 1 5 4 3 2 2 . 4 4 3 3 4 4 3 1 1 3 2 5 . . 3 5 5 5 5 . Low Security (%) 22 | 100 91 24 100 . 100 60 . . . 51 . 100 44 . . . 12 . . 55 99 3 . . . 100 21 . . . . . Level 1 14 | . 8 26 . . . 39 4 . . 27 27 . 11 . . 30 20 . . 44 . 24 41 11 . . 50 5 . . . . Level 2 18 | . . 49 . . . . 16 . . 20 72 . 2 16 42 53 9 . . . . 34 58 42 . . 7 34 . . . . Level 3 18 | . . . . . . . 46 76 100 . . . 23 80 57 15 42 37 100 . . 38 . 22 . . 19 12 . . . . Level 4 5 | . . . . . . . 25 23 . . . . 16 3 . . 14 62 . . . . . 16 . . . 11 . . . . Level 5 10 | . . . . . . . 7 . . . . . . . . . . . . . . . . 3 . . . . 7 68 97 . High Security 10 | . . . . . . . . . . . . . . . . . . . . . . . . 3 . . . 34 92 31 2 . Max Security . | . . . . . . . . . . . . . . . . . . . . . . . . . . . . . . . . . Sterilizations 2 | . . . . . . . . . . . . . . . . . . . . . . . . . . . . 1 1 . . . Squads Dispatched 177 | . 1 4 . . . 4 . 6 . . 5 . 5 5 . . 12 . 4 . 5 . 6 23 . 8 6 34 34 11 4 . Investigation 23 | . 1 3 . . . 1 . . . . 1 . 1 2 . . 3 . . . 3 . . 4 . 4 . . . . . . Extermination 23 | . . . . . . . . . . . 2 . 2 . . . 1 . 1 . . . 2 6 . . 3 5 1 . . . Reinforcement 28 | . . 1 . . . . . 1 . . 2 . 2 1 . . 5 . . . . . 2 4 . 4 1 1 1 2 1 . Assault 89 | . . . . . . . . 2 . . . . . 2 . . 2 . 3 . . . 2 9 . . 2 24 32 8 3 . Garrison 10 | . . . . . . 3 . 3 . . . . . . . . 1 . . . 2 . . . . . . . . 1 . . Intercept 4 | . . . . . . . . . . . . . . . . . . . . . . . . . . . . 4 . . . . Searches Triggered 2 | . . . . . . . . . . . 2 . . . . . . . . . . . . . . . . . . . . . Construction Impeded 5 | . . . . . . . . . . . 1 . 1 1 . . . . . . . . 1 . . . . . . 1 . . Haulers Reinforced 2 | . . . . . . . . . . . . . . . . . . . . . . . . . . 1 . . . 1 . . Active Scanning Responses . | . . . . . . . . . . . . . . . . . . . . . . . . . . . . . . . . . Cargo Convoy Interrupts 1 | . . . . . . . . . . . . . 1 . . . . . . . . . . . . . . . . . . . Stealth | -11 -10 -9 -9 -9 -8 -8 -8 -8 -8 -8 -6 -6 -6 -6 -6 -6 -6 -6 -5 -5 -5 -5 -4 -4 -4 -3 -3 -3 -2 -1 -1 -1 --------- Run | Yrd Mat Mat Min Exi Min Mat Gar Sto Gar Rec Fac Was Fac Ext Cet Arc Hub Gar Fac Was Fac Gar Fac Arm Lab Res Qua Sec Res Acc Com Ac0 Distress Signals 68 | . 1 5 . . . 4 . 1 . . . . 2 5 2 . . . 2 . . . . 5 . 8 2 3 1 . 27 . Communications Jammed 32 | . . . . . . . . . . . . . . . . . . . . . . . . 26 . . 6 . . . . . Distress Signals 31 | . . . . . . . . . . . . . . . . . . . . . . . . 26 . . 5 . . . . . Times Spotted 1225 | . 22 47 . 30 2 18 45 16 10 2 13 . 44 41 22 17 57 20 11 7 5 18 27 123 3 19 58 199 211 60 25 53 Peak Tracking Total 23 | . 4 6 . 9 1 5 6 5 3 1 3 . 11 6 5 1 7 5 4 2 2 7 4 10 3 5 11 23 19 11 8 7 Tactical Retreats 63 | . 4 4 . 8 . . 3 2 . . 1 . . 4 2 . 3 2 4 1 . 1 1 3 . . 1 5 10 2 2 . Traps | -11 -10 -9 -9 -9 -8 -8 -8 -8 -8 -8 -6 -6 -6 -6 -6 -6 -6 -6 -5 -5 -5 -5 -4 -4 -4 -3 -3 -3 -2 -1 -1 -1 ------- Run | Yrd Mat Mat Min Exi Min Mat Gar Sto Gar Rec Fac Was Fac Ext Cet Arc Hub Gar Fac Was Fac Gar Fac Arm Lab Res Qua Sec Res Acc Com Ac0 Traps Triggered 36 | . . . . . . . 9 . 5 . 1 . 1 1 . . 2 1 1 . . 3 2 2 . 1 1 1 2 2 1 . Indirectly . | . . . . . . . . . . . . . . . . . . . . . . . . . . . . . . . . . Trap Hack Attempts . | . . . . . . . . . . . . . . . . . . . . . . . . . . . . . . . . . Triggered . | . . . . . . . . . . . . . . . . . . . . . . . . . . . . . . . . . Disarmed . | . . . . . . . . . . . . . . . . . . . . . . . . . . . . . . . . . Reprogrammed . | . . . . . . . . . . . . . . . . . . . . . . . . . . . . . . . . . Reused . | . . . . . . . . . . . . . . . . . . . . . . . . . . . . . . . . . Traps Extracted . | . . . . . . . . . . . . . . . . . . . . . . . . . . . . . . . . . Installed . | . . . . . . . . . . . . . . . . . . . . . . . . . . . . . . . . . Triggered . | . . . . . . . . . . . . . . . . . . . . . . . . . . . . . . . . . Machines | -11 -10 -9 -9 -9 -8 -8 -8 -8 -8 -8 -6 -6 -6 -6 -6 -6 -6 -6 -5 -5 -5 -5 -4 -4 -4 -3 -3 -3 -2 -1 -1 -1 ---------- Run | Yrd Mat Mat Min Exi Min Mat Gar Sto Gar Rec Fac Was Fac Ext Cet Arc Hub Gar Fac Was Fac Gar Fac Arm Lab Res Qua Sec Res Acc Com Ac0 Machines Disabled 119 | . 1 4 . 8 . 1 . 1 2 . 1 . 6 4 . 7 6 1 . . 1 4 3 13 8 1 10 24 5 2 4 2 Max in Single Turn 2 | . 1 2 . 1 . 1 . 1 1 . 1 . 1 2 . 2 1 1 . . 1 1 1 1 1 1 1 2 1 1 1 1 Garrison Access 6 | . . . . . . . . . . . . . . . . . 1 . 1 . . . . . . . 1 1 1 1 . . Garrison Relay 3 | . . . . . . . 1 . 1 . . . . . . . . . . . . 1 . . . . . . . . . . Network Hub 3 | . . . . . . . . . . . . . . . . . 3 . . . . . . . . . . . . . . . Machines Repaired . | . . . . . . . . . . . . . . . . . . . . . . . . . . . . . . . . . Machines Dismantled 1 | . . . . . . . 1 . . . . . . . . . . . . . . . . . . . . . . . . . Machines Sabotaged 1 | . . . . . . . . . . . . . . . . . 1 . . . . . . . . . . . . . . . Overloaded Fab Kills . | . . . . . . . . . . . . . . . . . . . . . . . . . . . . . . . . . Hacking | -11 -10 -9 -9 -9 -8 -8 -8 -8 -8 -8 -6 -6 -6 -6 -6 -6 -6 -6 -5 -5 -5 -5 -4 -4 -4 -3 -3 -3 -2 -1 -1 -1 --------- Run | Yrd Mat Mat Min Exi Min Mat Gar Sto Gar Rec Fac Was Fac Ext Cet Arc Hub Gar Fac Was Fac Gar Fac Arm Lab Res Qua Sec Res Acc Com Ac0 Machines Accessed 143 | . 9 13 . 2 1 3 3 1 1 11 6 . 6 13 . . 6 1 5 . 5 3 2 11 . 8 12 16 2 2 1 . Terminals 90 | . 7 10 . . 1 2 3 . 1 6 2 . 2 12 . . 4 1 3 . . 3 1 3 . 3 9 14 1 1 1 . Fabricators 10 | . . . . . . . . . . . 2 . 1 . . . . . . . 1 . . 5 . 1 . . . . . . Repair Stations 14 | . 1 2 . . . . . . . . . . 1 . . . . . 1 . 2 . 1 2 . 1 2 . 1 . . . Recycling Units 11 | . 1 1 . . . . . . . 5 1 . 1 1 . . . . . . . . . 1 . . . . . . . . Scanalyzers 6 | . . . . . . . . . . . 1 . 1 . . . . . . . 1 . . . . 2 . 1 . . . . Garrison Access 10 | . . . . . . 1 . 1 . . . . . . . . 2 . 1 . 1 . . . . 1 1 1 . 1 . . Total Hacks 553 | . 28 38 . 2 4 11 7 1 1 41 19 . 16 36 . . 14 4 24 . 21 18 13 60 . 63 70 52 5 3 2 . Successful 291 | . 17 23 . 2 1 2 1 1 1 29 12 . 9 13 . . 8 . 13 . 15 5 5 38 . 36 34 23 . 2 1 . Failed 261 | . 11 15 . . 3 9 6 . . 12 7 . 7 23 . . 6 4 11 . 6 13 8 22 . 26 36 29 5 1 1 . Catastrophic 47 | . 1 . . . 1 . 2 . . 1 3 . . 3 . . 3 1 2 . . 4 . 7 . 5 8 4 1 1 . . Database Lockouts 1 | . . . . . . . . . . . . . . . . . . . . . . . . . . 1 . . . . . . Manual 225 | . 6 12 . 1 4 7 . . . 27 5 . 5 19 1 . 10 . 2 . 3 7 4 29 . 34 29 18 2 . . . Terminals 342 | . 17 28 . . 4 10 7 . 1 28 5 . 4 34 . . 9 4 9 . . 18 8 20 . 35 47 49 1 2 2 . Fabricators 47 | . . . . . . . . . . . 9 . 6 . . . . . . . 6 . . 20 . 6 . . . . . . Repair Stations 98 | . 8 9 . . . . . . . . . . 2 . . . . . 13 . 9 . 5 18 . 9 21 . 4 . . . Recycling Units 24 | . 3 1 . . . . . . . 13 2 . 1 2 . . . . . . . . . 2 . . . . . . . . Scanalyzers 14 | . . . . . . . . . . . 3 . 3 . . . . . . . 3 . . . . 3 . 2 . . . . Garrison Access 26 | . . . . . . 1 . 1 . . . . . . . . 5 . 2 . 3 . . . . 10 2 1 . 1 . . Terminal Hacks 111 | . 4 12 . 2 1 1 1 . 1 14 . . 2 10 . . 2 . 2 . . 5 3 5 . 15 13 16 . 1 1 . Record 2 | . . . . 1 . . . . . . . . . . . . . . . . . . . . . . 1 . . . . . Part Schematic 12 | . . 2 . . . . . . . 1 . . . 2 . . . . . . . . 1 1 . 4 1 . . . . . Robot Schematic 2 | . . . . . . . . . . 1 . . . . . . . . . . . . . . . 1 . . . . . . Robot Analysis 11 | . 1 1 . . . . . . . 3 . . . . . . . . . . . . . . . 5 . 1 . . . . Prototype ID Bank 11 | . 2 1 . . . . . . . 2 . . . . . . . . 1 . . . 1 1 . . 1 2 . . . . Open Door 11 | . . . . . . . 1 . . . . . 1 5 . . . . . . . . . . . . . 3 . . 1 . Level Access Points 1 | . . . . . . . . . . . . . . . . . . . . . . . . . . . . 1 . . . . Branch Access Points 5 | . . 1 . . 1 . . . . . . . 1 . . . . . . . . . 1 . . 1 . . . . . . Emergency Access Points 3 | . . . . . . . . . . . . . . . . . . . . . . 1 . . . . . 2 . . . . Machine Index 2 | . . . . . . . . . . . . . . . . . . . . . . . . . . 1 1 . . . . . Terminal Index 3 | . . . . . . . . . . 1 . . . . . . . . . . . . . . . . 1 . . 1 . . Recycling Unit Index 1 | . . . . . . . . . . 1 . . . . . . . . . . . . . . . . . . . . . . Alert Level 2 | . . 1 . . . . . . . 1 . . . . . . . . . . . . . . . . . . . . . . Unreport Threat 15 | . . 3 . . . . . . . 2 . . . 1 . . . . . . . 1 . 3 . . 4 1 . . . . Locate Traps 7 | . 1 . . . . 1 . . . . . . . 2 . . . . . . . . . . . . 2 1 . . . . Recall Reinforcements 1 | . . . . . . . . . . . . . . . . . . . . . . . . . . . . 1 . . . . Hauler Manifests 4 | . . 1 . . . . . . . . . . . . . . . . 1 . . . . . . 1 . 1 . . . . Registered Components 1 | . . . . . . . . . . . . . . . . . . . . . . . . . . 1 . . . . . . Registered Prototypes 1 | . . . . . . . . . . . . . . . . . . . . . . . . . . 1 . . . . . . Zone Layout 11 | . . 2 . . . . . . . 2 . . . . . . 2 . . . . . . . . . 2 3 . . . . Garrison Registry 2 | . . . . . . . . . 1 . . . . . . . . . . . . 1 . . . . . . . . . . Patrol Navigation 1 | . . . . . . . . . . . . . . . . . . . . . . 1 . . . . . . . . . . Security Stations 1 | . . . . . . . . . . . . . . . . . . . . . . 1 . . . . . . . . . . Derelict Proto ID Bank 1 | . . . . 1 . . . . . . . . . . . . . . . . . . . . . . . . . . . . Fabricator Hacks 23 | . . . . . . . . . . . 6 . 2 . . . . . . . 3 . . 9 . 3 . . . . . . Network Status 5 | . . . . . . . . . . . 1 . 1 . . . . . . . 1 . . 1 . 1 . . . . . . Load Schematic 8 | . . . . . . . . . . . 2 . 1 . . . . . . . 1 . . 3 . 1 . . . . . . Build 10 | . . . . . . . . . . . 3 . . . . . . . . . 1 . . 5 . 1 . . . . . . Repair Station Hacks 66 | . 8 6 . . . . . . . . . . 2 . . . . . 9 . 5 . 2 13 . 8 13 . . . . . Scan Component 36 | . 4 4 . . . . . . . . . . 1 . . . . . 5 . 3 . 1 7 . 4 7 . . . . . Repair 30 | . 4 2 . . . . . . . . . . 1 . . . . . 4 . 2 . 1 6 . 4 6 . . . . . Recycling Unit Hacks 11 | . 1 . . . . . . . . 6 1 . 1 . . . . . . . . . . 2 . . . . . . . . Report Inventory 6 | . . . . . . . . . . 4 1 . . . . . . . . . . . . 1 . . . . . . . . Retrieve Components 5 | . 1 . . . . . . . . 2 . . 1 . . . . . . . . . . 1 . . . . . . . . Scanalyzer 12 | . . . . . . . . . . . 3 . 1 . . . . . . . 3 . . . . 3 . 2 . . . . Insert Component 8 | . . . . . . . . . . . 1 . 1 . . . . . . . 1 . . . . 3 . 2 . . . . Analyze 4 | . . . . . . . . . . . 2 . . . . . . . . . 2 . . . . . . . . . . . Garrison Access Hacks 14 | . . . . . . 1 . 1 . . . . . . . . 3 . 2 . 2 . . . . 1 2 1 . 1 . . Unlock Access 4 | . . . . . . 1 . 1 . . . . . . . . 1 . . . 1 . . . . . . . . . . . Seal Access 5 | . . . . . . . . . . . . . . . . . 1 . 1 . . . . . . . 1 1 . 1 . . Coupler Status 5 | . . . . . . . . . . . . . . . . . 1 . 1 . 1 . . . . 1 1 . . . . . Unauthorized Hacks 54 | . 4 5 . . . . . . . 9 2 . 1 3 . . 3 . . . 2 . . 9 . 6 6 4 . . . . Terminals 30 | . 3 4 . . . . . . . 4 . . . 3 . . 3 . . . . . . 1 . 2 6 4 . . . . Track 2 | . . . . . . . . . . . . . . . . . . . . . . . . . . . 1 1 . . . . Assimilate 2 | . . 1 . . . . . . . . . . . . . . . . . . . . . . . . 1 . . . . . Botnet 17 | . 2 2 . . . . . . . 3 . . . 2 . . . . . . . . . 1 . 2 3 2 . . . . Operators 6 | . 1 1 . . . . . . . 1 . . . 1 . . . . . . . . . . . . 1 1 . . . . Sabotage 3 | . . . . . . . . . . . . . . . . . 3 . . . . . . . . . . . . . . . Fabricators 13 | . . . . . . . . . . . 2 . 1 . . . . . . . 1 . . 8 . 1 . . . . . . Prioritize 8 | . . . . . . . . . . . 2 . 1 . . . . . . . . . . 4 . 1 . . . . . . Liberate 3 | . . . . . . . . . . . . . . . . . . . . . . . . 3 . . . . . . . . Haulers 2 | . . . . . . . . . . . . . . . . . . . . . 1 . . 1 . . . . . . . . Repair Stations . | . . . . . . . . . . . . . . . . . . . . . . . . . . . . . . . . . Recycling Units 7 | . 1 1 . . . . . . . 5 . . . . . . . . . . . . . . . . . . . . . . Mask 1 | . . . . . . . . . . 1 . . . . . . . . . . . . . . . . . . . . . . Tunnel 6 | . 1 1 . . . . . . . 4 . . . . . . . . . . . . . . . . . . . . . . Scanalyzers . | . . . . . . . . . . . . . . . . . . . . . . . . . . . . . . . . . Garrison Access 4 | . . . . . . . . . . . . . . . . . . . . . 1 . . . . 3 . . . . . . Broadcast 1 | . . . . . . . . . . . . . . . . . . . . . . . . . . 1 . . . . . . Redirect 1 | . . . . . . . . . . . . . . . . . . . . . . . . . . 1 . . . . . . Reprogram 2 | . . . . . . . . . . . . . . . . . . . . . 1 . . . . 1 . . . . . . Data Cores Recovered 1 | . . . . . . 1 . . . . . . . . . . . . . . . . . . . . . . . . . . Used . | . . . . . . . . . . . . . . . . . . . . . . . . . . . . . . . . . Hacking Detections 102 | . 7 12 . . 1 2 3 . . 7 3 . 3 9 . . 4 1 5 . 4 3 2 9 . 5 9 10 2 1 . . Full Trace Events 22 | . . 1 . . . 2 2 . . 7 1 . 1 2 . . . . . . 1 . . 3 . 2 . . . . . . Feedback Events 1 | . . . . . . 1 . . . . . . . . . . . . . . . . . . . . . . . . . . Hackware Fried 1 | . . . . . . 1 . . . . . . . . . . . . . . . . . . . . . . . . . . Feedback Blocked . | . . . . . . . . . . . . . . . . . . . . . . . . . . . . . . . . . Robot Schematics Acquired 8 | . . . . . . . . . . 1 . . . . . . . . . . . . . . . 1 1 5 . . . . Robots Built 2 | . . . . . . . . . . . 2 . . . . . . . . . . . . . . . . . . . . . Authchips 1 | . . . . . . . . . . . 1 . . . . . . . . . . . . . . . . . . . . . Time 58 | . . . . . . . . . . . 58 . . . . . . . . . . . . . . . . . . . . . Total Robot Build Rating 6 | . . . . . . . . . . . 6 . . . . . . . . . . . . . . . . . . . . . Part Schematics Acquired 41 | . . 2 . . . . . . . 1 1 . . 2 . . . . . . 1 . 1 1 . 4 3 25 . . . . Parts Built 15 | . . . . . . . . . . . 4 . . . . . . . . . 2 . . 7 . 2 . . . . . . Authchips 1 | . . . . . . . . . . . 1 . . . . . . . . . . . . . . . . . . . . . Time 432 | . . . . . . . . . . . 90 . . . . . . . . . 64 . . 246 . 32 . . . . . . Total Part Build Rating 117 | . . . . . . . . . . . 30 . . . . . . . . . 16 . . 55 . 16 . . . . . . Parts Repaired 30 | . 4 2 . . . . . . . . . . 1 . . . . . 4 . 2 . 1 6 . 4 6 . . . . . Time 1279 | . 116 102 . . . . . . . . . . 28 . . . . . 206 . 95 . 54 361 . 142 175 . . . . . Parts Recycled . | . . . . . . . . . . . . . . . . . . . . . . . . . . . . . . . . . Recycled Matter . | . . . . . . . . . . . . . . . . . . . . . . . . . . . . . . . . . Retrieved Matter . | . . . . . . . . . . . . . . . . . . . . . . . . . . . . . . . . . Retrieved Components 10 | . 1 . . . . . . . . 5 . . 2 . . . . . . . . . . 2 . . . . . . . . Parts Scanalyzed 3 | . . . . . . . . . . . 1 . 1 . . . . . . . 1 . . . . . . . . . . . Part Schematics Acquired 2 | . . . . . . . . . . . 1 . . . . . . . . . 1 . . . . . . . . . . . Parts Damaged 2 | . . . . . . . . . . . . . 1 . . . . . . . 1 . . . . . . . . . . . Bothacking | -11 -10 -9 -9 -9 -8 -8 -8 -8 -8 -8 -6 -6 -6 -6 -6 -6 -6 -6 -5 -5 -5 -5 -4 -4 -4 -3 -3 -3 -2 -1 -1 -1 ------------ Run | Yrd Mat Mat Min Exi Min Mat Gar Sto Gar Rec Fac Was Fac Ext Cet Arc Hub Gar Fac Was Fac Gar Fac Arm Lab Res Qua Sec Res Acc Com Ac0 Used RIF Installer 4 | . . . . . . . 1 . 1 . . . . . . . . 1 . . . 1 . . . . . . . . . . Watcher Feeds 1 | . . . . . . . . . . . . . . . . . . 1 . . . . . . . . . . . . . . Alert ID Control 1 | . . . . . . . . . 1 . . . . . . . . . . . . . . . . . . . . . . . Structural Interface 1 | . . . . . . . . . . . . . . . . . . . . . . 1 . . . . . . . . . . Robots Hacked 21 | . . . . 4 . . . . . 2 1 . . . . . . . 2 . . . 5 2 . . . 5 . . . . Non-combat 16 | . . . . 3 . . . . . 2 1 . . . . . . . 2 . . . 5 2 . . . 1 . . . . Combat 5 | . . . . 1 . . . . . . . . . . . . . . . . . . . . . . . 4 . . . . Robot Hacks Applied 29 | . . . . 4 . . . . . 2 1 . . . . . . . 2 . . . 8 7 . . . 5 . . . . parse_system 5 | . . . . 4 . . . . . 1 . . . . . . . . . . . . . . . . . . . . . . find_chute 2 | . . . . . . . . . . . . . . . . . . . 2 . . . . . . . . . . . . . ignore_repairs 4 | . . . . . . . . . . . . . . . . . . . . . . . 4 . . . . . . . . . find_fabricator 1 | . . . . . . . . . . . 1 . . . . . . . . . . . . . . . . . . . . . ignore_parts 1 | . . . . . . . . . . 1 . . . . . . . . . . . . . . . . . . . . . . find_station 1 | . . . . . . . . . . . . . . . . . . . . . . . . 1 . . . . . . . . purge_threat 3 | . . . . . . . . . . . . . . . . . . . . . . . 1 2 . . . . . . . . locate_traps 2 | . . . . . . . . . . . . . . . . . . . . . . . 1 1 . . . . . . . . reprogram_traps 1 | . . . . . . . . . . . . . . . . . . . . . . . . 1 . . . . . . . . block_reporting 1 | . . . . . . . . . . . . . . . . . . . . . . . . . . . . 1 . . . . recall_investigation 1 | . . . . . . . . . . . . . . . . . . . . . . . . 1 . . . . . . . . disable_scanner 3 | . . . . . . . . . . . . . . . . . . . . . . . . . . . . 3 . . . . locate_prototypes 1 | . . . . . . . . . . . . . . . . . . . . . . . . . . . . 1 . . . . overload_power 1 | . . . . . . . . . . . . . . . . . . . . . . . 1 . . . . . . . . . formatsys_low 2 | . . . . . . . . . . . . . . . . . . . . . . . 1 1 . . . . . . . . Relay Couplers Released 23 | . . . . . . . 3 . 4 . . . 4 . . . 3 . . . . 5 . . . . 4 . . . . . Machine Destruction 15 | . . . . . . . 3 . 4 . . . . . . . 3 . . . . 5 . . . . . . . . . . Programmers 8 | . . . . . . . . . . . . . 4 . . . . . . . . . . . . . 4 . . . . . Attached 6 | . . . . . . . . . 1 . . . . . . . . 1 . . . 1 1 1 . . . 1 . . . . Fabnet Peak Effective % . | . . . . . . . . . . . . . . . . . . . . . . . . . . . . . . . . . Robots Rewired 31 | . . . . . . . 6 . . . . . . 6 . . . 1 . . . . . 18 . . . . . . . . Allies Hacked 9 | . . . . . . . . . . . . . 1 2 . . . . . . . . . 4 . . . 2 . . . . Hacks Repelled . | . . . . . . . . . . . . . . . . . . . . . . . . . . . . . . . . . Allies | -11 -10 -9 -9 -9 -8 -8 -8 -8 -8 -8 -6 -6 -6 -6 -6 -6 -6 -6 -5 -5 -5 -5 -4 -4 -4 -3 -3 -3 -2 -1 -1 -1 -------- Run | Yrd Mat Mat Min Exi Min Mat Gar Sto Gar Rec Fac Was Fac Ext Cet Arc Hub Gar Fac Was Fac Gar Fac Arm Lab Res Qua Sec Res Acc Com Ac0 Total Allies 110 | . . 1 . . . . 8 2 . . 3 20 . 17 5 . . 1 . 18 2 . 1 29 . . . 1 1 . 1 . Largest Group 20 | . . 1 1 . . . 6 2 . . 3 20 17 7 6 5 5 1 . 18 11 6 1 14 . . . 1 1 . 1 . Highest-Rated Group 777 | . . 10 8 . . . 96 62 . . 132 777 632 333 632 473 473 116 . 638 390 220 26 724 . . . 137 178 . 160 . Highest-Rated Ally 178 | . . 10 8 . . . 31 31 . . 90 50 50 159 159 96 96 116 . 50 46 46 26 68 . . . 137 178 . 160 . Total Orders 16 | . . . . . . . . . . . . . . 1 . 3 . . . . . . . 4 . . . . 1 . . 7 STAY 3 | . . . . . . . . . . . . . . 1 . 1 . . . . . . . 1 . . . . . . . . ROAM 1 | . . . . . . . . . . . . . . . . . . . . . . . . 1 . . . . . . . . FOLLOW 2 | . . . . . . . . . . . . . . . . 2 . . . . . . . . . . . . . . . . AID 2 | . . . . . . . . . . . . . . . . . . . . . . . . 2 . . . . . . . . EXPLORE 6 | . . . . . . . . . . . . . . . . . . . . . . . . . . . . . 1 . . 5 RETURN 2 | . . . . . . . . . . . . . . . . . . . . . . . . . . . . . . . . 2 Ally Attacks 716 | . . . . . . . 26 26 . . 11 . 131 177 41 . 22 . . . 36 44 . 170 . . . 21 10 . 1 . Total Damage 19013 | . . . . . . . 394 418 . . 508 . 4234 2798 1141 . 550 . . . 612 1033 . 5218 . . . 1315 772 . 20 . Kills 121 | . . . . . . . 1 5 . . 5 . 27 23 10 . 4 . . . 5 8 . 26 . . . 4 3 . . . Allies Corrupted 1 | . . . . . . . . . . . . . . . . . 1 . . . . . . . . . . . . . . . Allies Melted 2 | . . . . . . . . . . . . . . 1 . . . . . . . . . . . . . . . . 1 . Turrets Deployed 1 | . . . . . . . . . . . . . . . . . . . . . . . . . . . . 1 . . . . Field Lobotomies 4 | . . . . . . . . . . . 1 . . . . . . . . . . . . . . . . 1 1 . 1 . Intel | -11 -10 -9 -9 -9 -8 -8 -8 -8 -8 -8 -6 -6 -6 -6 -6 -6 -6 -6 -5 -5 -5 -5 -4 -4 -4 -3 -3 -3 -2 -1 -1 -1 ------- Run | Yrd Mat Mat Min Exi Min Mat Gar Sto Gar Rec Fac Was Fac Ext Cet Arc Hub Gar Fac Was Fac Gar Fac Arm Lab Res Qua Sec Res Acc Com Ac0 Robot Analysis Total 11 | . 1 1 . . . . . . . 3 . . . . . . . . . . . . . . . 5 . 1 . . . . Derelict Logs Recovered 2 | . . . 2 . . . . . . . . . . . . . . . . . . . . . . . . . . . . . Drone Launches 8 | . . . . . . . . . . . . . . . . . . . . . . . . . . . . . 2 . . 6 Drone Recoveries 3 | . . . . . . . . . . . . . . . . . . . . . . . . . . . . . . . . 3 Exploration | -11 -10 -9 -9 -9 -8 -8 -8 -8 -8 -8 -6 -6 -6 -6 -6 -6 -6 -6 -5 -5 -5 -5 -4 -4 -4 -3 -3 -3 -2 -1 -1 -1 ------------- Run | Yrd Mat Mat Min Exi Min Mat Gar Sto Gar Rec Fac Was Fac Ext Cet Arc Hub Gar Fac Was Fac Gar Fac Arm Lab Res Qua Sec Res Acc Com Ac0 Turns Passed 50899 | 95 1409 3132 1096 3096 1206 299 1785 341 718 1555 958 561 1256 1890 318 1693 1507 1166 901 903 661 924 1303 3090 1033 1315 4178 4132 3168 598 3878 734 Spaces Moved 22677 | 51 636 1128 446 1193 771 135 929 122 259 880 506 305 627 862 145 350 658 486 340 419 351 486 501 1189 422 584 1893 1753 1560 298 2037 355 Core 64 | 12 . . . . . . . . . . . . . . . . . . . . . . . . . . . . . . . 52 Treads 18638 | 39 636 1128 446 1183 . . 4 . . . . 77 627 862 145 350 658 366 340 419 351 486 501 1189 422 584 1893 1747 1560 294 2037 294 Legs 308 | . . . . 10 293 . . . . . . . . . . . . . . . . . . . . . . . . . . 5 Wheels 3653 | . . . . . 478 135 925 122 259 880 506 228 . . . . . 120 . . . . . . . . . . . . . . Hover . | . . . . . . . . . . . . . . . . . . . . . . . . . . . . . . . . . Flight . | . . . . . . . . . . . . . . . . . . . . . . . . . . . . . . . . . Fastest Speed 50 | 50 160 160 240 120 120 120 120 120 210 140 120 123 160 160 160 160 160 150 160 160 160 160 160 160 165 162 150 157 141 141 135 50 Average Speed 166 | 135 160 237 240 220 132 132 137 160 249 169 131 132 160 160 160 171 170 189 166 160 160 160 161 167 170 166 165 159 147 143 142 122 Slowest Speed 320 | 160 240 240 240 240 215 135 320 210 270 215 155 160 240 160 160 240 240 245 240 160 160 160 240 245 245 245 238 237 220 221 236 215 Overloaded Moves . | . . . . . . . . . . . . . . . . . . . . . . . . . . . . . . . . . Propulsion Burnouts . | . . . . . . . . . . . . . . . . . . . . . . . . . . . . . . . . . Robots Hopped . | . . . . . . . . . . . . . . . . . . . . . . . . . . . . . . . . . Cave-ins Triggered . | . . . . . . . . . . . . . . . . . . . . . . . . . . . . . . . . . Teleports 2 | . . . . . . . . . . . . . . . . . . . . . . . . . . . 1 . . . 1 . Spacefolds 5 | . . . . . . . . . . . . . . . . . . . . . . . . . . . . 2 . 1 . 2 Exploration Rate (%) 59 | 5 91 93 96 87 84 12 87 25 44 98 15 95 27 88 68 97 60 46 10 96 9 58 14 69 96 24 97 96 49 9 79 40 Regions Visited 32 Branch Regions 15 Pre-discovered Areas 7 | . 1 1 . 1 . . . . . 4 . . . . . . . . . . . . . . . . . . . . . . Known Exits Taken 12 | . . 1 . . . 1 . 1 . . . . 1 . . . 1 . . . 1 . 1 1 1 1 1 1 . . . . Unknown Exits Taken 12 | 1 1 . 1 1 1 . . . . 1 . . . 1 1 1 . . . . . . . . . . . . 1 1 1 . Scrap Searched 5 | . . . 3 . 2 . . . . . . . . . . . . . . . . . . . . . . . . . . . Spaces Dug 204 | . . 1 . . . 15 25 . . 1 5 . . 1 . . 7 16 3 . 1 . 16 74 . 5 8 4 22 . . . Terrain Destroyed 1595 | . . 41 . 12 10 27 118 31 49 2 20 1 119 38 6 13 54 21 15 8 8 9 43 130 4 54 37 94 200 38 32 361 Melee 70 | . . 1 . . . 6 7 . . 1 5 . . 1 . . 7 16 3 . 1 . 6 2 . 2 8 2 2 . . . Projectile 468 | . . . . 3 . 3 1 1 2 1 15 1 23 22 6 13 47 5 12 8 6 6 36 23 4 5 3 24 149 3 5 41 AOE 1019 | . . 40 . 9 10 18 110 30 47 . . . 96 15 . . . . . . . . . 96 . 45 15 68 49 35 22 314 Terrain Rammed . | . . . . . . . . . . . . . . . . . . . . . . . . . . . . . . . . . Walls Destroyed . | . . . . . . . . . . . . . . . . . . . . . . . . . . . . . . . . . Machines Disabled . | . . . . . . . . . . . . . . . . . . . . . . . . . . . . . . . . . Actions | -11 -10 -9 -9 -9 -8 -8 -8 -8 -8 -8 -6 -6 -6 -6 -6 -6 -6 -6 -5 -5 -5 -5 -4 -4 -4 -3 -3 -3 -2 -1 -1 -1 --------- Run | Yrd Mat Mat Min Exi Min Mat Gar Sto Gar Rec Fac Was Fac Ext Cet Arc Hub Gar Fac Was Fac Gar Fac Arm Lab Res Qua Sec Res Acc Com Ac0 Total 32703 | 65 910 1453 461 1521 908 211 1264 198 323 927 718 433 835 1218 202 1416 918 641 630 607 435 578 870 1986 687 859 2740 2700 2121 398 2942 528 Wait 5284 | . 175 199 . 124 82 13 21 2 . 11 106 85 105 154 22 947 89 59 231 130 60 43 197 367 139 154 522 387 169 11 649 31 Move 22637 | 50 635 1127 445 1192 770 135 928 122 257 879 506 304 626 861 144 349 657 484 340 418 350 484 500 1188 421 583 1892 1748 1559 294 2036 353 Hop . | . . . . . . . . . . . . . . . . . . . . . . . . . . . . . . . . . Pick Up 384 | 4 23 28 3 39 7 7 11 5 8 4 6 1 14 10 2 11 15 3 9 . 2 1 10 16 14 11 24 44 17 5 23 7 Fast Attach 334 | 5 2 3 . 6 6 1 8 6 2 2 8 5 7 2 4 9 3 10 3 10 3 4 10 18 5 18 44 31 38 6 43 12 Attach 197 | 1 3 6 1 16 1 6 3 5 3 3 4 1 3 4 . 8 12 3 2 3 1 . 5 10 5 10 12 29 11 1 16 9 Detach 137 | . . . . 9 4 3 1 4 3 . . 3 5 2 1 7 6 2 . 3 1 1 3 7 4 7 8 17 13 1 17 5 Swap 555 | . 1 8 . 8 2 8 54 5 2 1 17 7 3 18 1 4 22 9 10 10 5 9 47 96 4 20 47 56 33 11 26 11 Drop 537 | . 7 23 3 29 6 4 22 7 8 7 12 5 19 8 5 20 12 10 5 7 2 4 14 18 17 17 65 56 37 10 61 17 Fire 1998 | 5 61 55 . 94 11 24 75 20 14 9 44 13 47 97 23 61 87 35 24 22 7 28 77 165 72 35 94 257 232 58 69 83 Melee 325 | . . 3 9 4 19 10 34 22 2 11 15 9 . 7 . . 13 26 5 4 1 4 6 8 6 4 32 69 2 . . . Ram . | . . . . . . . . . . . . . . . . . . . . . . . . . . . . . . . . . Kick . | . . . . . . . . . . . . . . . . . . . . . . . . . . . . . . . . . Crush 29 | . 3 1 . . . . . . . . . . 6 8 . . 2 . 1 . 3 . 1 1 . . . . . 1 2 . Escape Stasis 81 | . . . . . . . 39 . 24 . . . . 2 . . . . . . . . . . . . . 6 10 . . . Rewire 202 | . . . . . . . 65 . . . . . . 45 . . . . . . . . . 92 . . . . . . . . Trap . | . . . . . . . . . . . . . . . . . . . . . . . . . . . . . . . . . Miscellaneous 3 | . . . . . . . 3 . . . . . . . . . . . . . . . . . . . . . . . . . Route ------- -11/Scrapyard -10/Materials (discovered 5 exits: *Mat x3 / [*Min x2]) -9/Materials (discovered 4 exits: *Mat x3 / *Min) -9/Mines (discovered 3 exits: *Mat x2 / *Exi) -9/Exiles -8/Mines -8/Materials (discovered 2 exits: Sto / Gar) -8/Garrison (discovered 3 exits: *Sto x3) -8/Storage -8/Garrison (discovered 3 exits: *Rec x3) -8/Recycling -6/Factory -6/Waste -6/Factory (discovered 4 exits: *Low x2 / *Ext x2) -6/Extension (discovered 2 exits: *Fac / *Cet) -6/Cetus (discovered 2 exits: *Fac / [*Arc]) -6/Archives (discovered 3 exits: *Fac / *Hub x2) -6/Hub_04(d) (discovered 3 exits: *Fac x2 / Gar) -6/Garrison -5/Factory -5/Waste -5/Factory -5/Garrison (discovered 3 exits: *Fac x3) -4/Factory (discovered 3 exits: Upp x2 / *Arm) -4/Armory -4/Lab -3/Research (discovered 2 exits: *Qua x2) -3/Quarantine (discovered 2 exits: *Res / *Sec) -3/Section 7 -2/Research -1/Access -1/Command (discovered 2 exits: [*Sur] / [*Ac0]) -1/Access_0 History --------- Turn | Location | Event 46 | -11/Scrapyard | Discovered new exit (range 16) 96 | -11/Scrapyard | Entered Materials 308 | -10/Materials | Build established: Mutant 358 | -10/Materials | Discovered new exit (range 16) 440 | -10/Materials | Discovered new exit (range 7) 689 | -10/Materials | Discovered new exit (range 4) 1031 | -10/Materials | Discovered new exit (range 16) 1212 | -10/Materials | Discovered new exit (range 15) 1318 | -10/Materials | Repaired Lgt. Treads 1345 | -10/Materials | Repaired Lgt. Treads 1371 | -10/Materials | Repaired Lgt. Treads 1410 | -10/Materials | Repaired Imp. Heat Sink 1505 | -10/Materials | Entered another Materials area 1505 | -9/Materials | Evolved 2 slots: Weapon x2 1810 | -9/Materials | Build established: Gunner 1912 | -9/Materials | Discovered new exit (range 8) 2211 | -9/Materials | Repaired Imp. EM Shotgun 2266 | -9/Materials | Repaired Imp. EM Shotgun 2414 | -9/Materials | Identified exit to Mines 2619 | -9/Materials | Discovered new exit (range 16) 2946 | -9/Materials | Discovered new exit (range 16) 3880 | -9/Materials | Discovered new exit (range 16) 4637 | -9/Materials | Entered Mines 4637 | -9/Mines | Accompanied by 1 ally 5093 | -9/Mines | Discovered new exit (range 9) 5390 | -9/Mines | Deemed a non-threat by the Exiles lab entrance 5392 | -9/Mines | Discovered new exit (range 5) 5536 | -9/Mines | Discovered new exit (range 5) 5563 | -9/Mines | Learned Materials stockpile data 5733 | -9/Mines | Entered Exiles 5793 | -9/Exiles | Met 8R-AWN 5837 | -9/Exiles | Met EX-HEX 5930 | -9/Exiles | Met EX-DEC 5942 | -9/Exiles | Learned location of Zion (-6) 6038 | -9/Exiles | Visited The Gauntlet 6272 | -9/Exiles | Met EX-BIN 6307 | -9/Exiles | Aligned with FarCom system 6310 | -9/Exiles | Given EX-Vault access code 6367 | -9/Exiles | Opened EX-Vault 6425 | -9/Exiles | Warned to stay clear of 0b10 Research branches 6588 | -9/Exiles | Discovered new exit (range 10) 6941 | -9/Exiles | Found Firepult 6945 | -9/Exiles | Found AWS/Autocannon 6950 | -9/Exiles | Found Field Lobotomy Kit 7539 | -9/Exiles | Build established: Mutant 7674 | -9/Exiles | Attacked by the Exiles 7843 | -9/Exiles | Lost 4 parts (1n1u2w) 7883 | -9/Exiles | Core integrity fell below 50% 7883 | -9/Exiles | Destroyed 8R-AWN 7902 | -9/Exiles | Lost 3 parts (1n2w) 7915 | -9/Exiles | Found AS-neutralizer No. 17b 7918 | -9/Exiles | Found Corrupted Exp. Targeting Computer 7925 | -9/Exiles | Found 8R-AWN's Boregun 7932 | -9/Exiles | Found 8R-AWN's Armor/EX 8410 | -9/Exiles | Build established: Gunner 8423 | -9/Exiles | Destroyed EX-DEC 8471 | -9/Exiles | Destroyed EX-HEX 8485 | -9/Exiles | Destroyed EX-BIN 8527 | -9/Exiles | Found Deploy-a-Sentry 8539 | -9/Exiles | Found Exp. Core Analyzer 8829 | -9/Exiles | Stole four prototypes: Firepult, AWS/Autocannon, Field Lobotomy Kit, Deploy-a-Sentry 8829 | -9/Exiles | Entered Mines 9019 | -8/Mines | Build established: Scavenger-Gunner 9177 | -8/Mines | Discovered new exit (range 7) 9312 | -8/Mines | Core integrity fell below 20% 10035 | -8/Mines | Entered Materials 10035 | -8/Materials | Evolved 2 slots: Utility x2 10036 | -8/Materials | Identified exit to Storage 10057 | -8/Materials | Hacking Suite fried by hacking feedback 10109 | -8/Materials | Garrison activated, responded to threat 10334 | -8/Materials | Identified exit to Garrison 10334 | -8/Materials | Entered Garrison 10458 | -8/Garrison | Triggered checkpoint 10534 | -8/Garrison | Rescued a captive Derelict 10535 | -8/Garrison | Rescued a captive Derelict 10593 | -8/Garrison | Assembled breached garrison interior 10743 | -8/Garrison | Destroyed 13 combat bots 10823 | -8/Garrison | Discovered exit to Storage (range 10) 11116 | -8/Garrison | Installed Relay Interface Framework 11137 | -8/Garrison | Spotted B-75 Beast 11270 | -8/Garrison | Destroyed B-75 Beast 11398 | -8/Garrison | Garrison Relay disabled 11443 | -8/Garrison | Discovered exit to Storage (range 10) 11879 | -8/Garrison | Core integrity fell below 50% 12101 | -8/Garrison | Discovered exit to Storage (range 14) 12119 | -8/Garrison | Entered Storage 12148 | -8/Storage | Lost 3 allies 12195 | -8/Storage | Met a pair of Derelict thieves 12222 | -8/Storage | Garrison activated, responded to threat 12275 | -8/Storage | Lost 3 parts (1n1u1w) 12460 | -8/Storage | Identified exit to Garrison 12460 | -8/Storage | Entered Garrison 12495 | -8/Garrison | Expanded RIF knowledge: Alert ID Control 12546 | -8/Garrison | Garrison Relay disabled 12664 | -8/Garrison | Build established: Gunner 12754 | -8/Garrison | Triggered checkpoint 12953 | -8/Garrison | Triggered checkpoint 13110 | -8/Garrison | Discovered new exit (range 69) 13110 | -8/Garrison | Discovered new exit (range 18) 13110 | -8/Garrison | Discovered new exit (range 92) 13178 | -8/Garrison | Entered Recycling 13180 | -8/Recycling | Core integrity fell below 20% 13185 | -8/Recycling | Found Scrap Engine 13466 | -8/Recycling | Build established: Mutant 13865 | -8/Recycling | Discovered new exit (range 16) 14733 | -8/Recycling | Entered Factory 14733 | -6/Factory | Evolved 4 slots: Propulsion x2, Utility x2 15083 | -6/Factory | Search patrols dispatched 15114 | -6/Factory | Fabricated Railgun? 15131 | -6/Factory | Assimilated H-61 Shepherd with FLK Orb 15219 | -6/Factory | Fabricated H-55 Commando? 15415 | -6/Factory | Build established: Scavenger-Skirmisher 15433 | -6/Factory | Search patrols dispatched 15509 | -6/Factory | Fabricated Adv. Weapon Cycler (x2) 15691 | -6/Factory | Sucked down chute 15691 | -6/Factory | Entered Waste 15692 | -6/Waste | Joined by Warlord forces that had cleared the area 15779 | -6/Waste | Build established: Scavenger-Gunner 16146 | -6/Waste | Discovered new exit (range 13) 16187 | -6/Waste | Found Imp. Powered Armor 16252 | -6/Waste | Entered Factory 16252 | -6/Factory | Accompanied by 17 allies 16483 | -6/Factory | Lost 3 allies 16504 | -6/Factory | Build established: Gunner 16873 | -6/Factory | Repaired Hvy. Treads 16939 | -6/Factory | Identified exit to Lower Caves 16939 | -6/Factory | Identified exit to Extension 16996 | -6/Factory | Lost 6 allies 17117 | -6/Factory | Spotted B-75 Beast 17292 | -6/Factory | Cargo convoy interrupted 17336 | -6/Factory | Destroyed 8 combat bots 17508 | -6/Factory | Entered Extension 17508 | -6/Extension | Accompanied by 1 ally 17558 | -6/Extension | Rescued a captive Derelict 17560 | -6/Extension | Rescued a captive Derelict 17989 | -6/Extension | Spotted B-75 Beast 18076 | -6/Extension | Build established: Hacker-Gunner 18133 | -6/Extension | Disrupted transfer network 18159 | -6/Extension | Destroyed B-75 Beast 18447 | -6/Extension | Rescued a captive Derelict 18558 | -6/Extension | First assault squad dispatched 18812 | -6/Extension | Spotted B-75 Beast 18847 | -6/Extension | Destroyed B-75 Beast 18913 | -6/Extension | Build established: Scavenger-Gunner 18967 | -6/Extension | Rescued a captive Derelict 18967 | -6/Extension | Rescued a captive Derelict 19078 | -6/Extension | Rescued a captive Derelict 19079 | -6/Extension | Rescued a captive Derelict 19199 | -6/Extension | Rescued a captive Derelict 19199 | -6/Extension | Rescued a captive Derelict 19250 | -6/Extension | Lost 5 allies 19277 | -6/Extension | Rescued A7 19321 | -6/Extension | Rescued a captive Derelict 19368 | -6/Extension | Discovered new exit (range 10) 19370 | -6/Extension | Discovered new exit (range 6) 19398 | -6/Extension | Entered Cetus 19398 | -6/Cetus | Accompanied by 6 allies (A7) 19403 | -6/Cetus | Acquired a Cetus Manufacturing Module code from A7 19413 | -6/Cetus | Spotted Cetus Guard 19414 | -6/Cetus | Spotted Cetus Guard 19417 | -6/Cetus | Spotted Cetus Guard 19427 | -6/Cetus | Allies destroyed Cetus Guard 19427 | -6/Cetus | Spotted Cetus Guard 19432 | -6/Cetus | Destroyed Cetus Guard 19439 | -6/Cetus | Allies destroyed Cetus Guard 19441 | -6/Cetus | Destroyed Cetus Guard 19520 | -6/Cetus | Started Cetus Manufacturing Module 19529 | -6/Cetus | Discovered new exit (range 21) 19545 | -6/Cetus | Manufactured an Enhanced Grunt 19570 | -6/Cetus | Manufactured an Enhanced Grunt 19580 | -6/Cetus | Spotted Cetus Guard 19582 | -6/Cetus | Spotted Cetus Guard 19584 | -6/Cetus | Spotted Cetus Guard 19589 | -6/Cetus | Destroyed Cetus Guard 19589 | -6/Cetus | Spotted Cetus Guard 19594 | -6/Cetus | Destroyed Cetus Guard 19595 | -6/Cetus | Manufactured an Enhanced Grunt 19599 | -6/Cetus | Destroyed Cetus Guard 19600 | -6/Cetus | Allies destroyed Cetus Guard 19609 | -6/Cetus | Discovered new exit (range 21) 19620 | -6/Cetus | Manufactured an Enhanced Grunt 19628 | -6/Cetus | Met Revision 17 19641 | -6/Cetus | System corruption reached 10% 19645 | -6/Cetus | Manufactured an Enhanced Grunt 19709 | -6/Cetus | Murdered A7 19709 | -6/Cetus | Destroyed A7 19711 | -6/Cetus | Extracted ID and sensor layout for unrecognized location from A7's data core 19716 | -6/Cetus | Entered Archives 19716 | -6/Archives | Accompanied by 5 allies 19917 | -6/Archives | Discovered new exit (range 15) 20077 | -6/Archives | Discovered new exit (range 16) 20324 | -6/Archives | Discovered new exit (range 13) 21409 | -6/Archives | Entered Hub_04(d) 21409 | -6/Hub_04(d) | Accompanied by 5 allies 21489 | -6/Hub_04(d) | Identified exit to Garrison 21762 | -6/Hub_04(d) | Spotted B-75 Beast 21800 | -6/Hub_04(d) | Discovered new exit (range 13) 21820 | -6/Hub_04(d) | Lost 5 allies 21944 | -6/Hub_04(d) | Network Hub disabled 21949 | -6/Hub_04(d) | Spotted Lightning 21949 | -6/Hub_04(d) | Spotted Lightning 21954 | -6/Hub_04(d) | Spotted Lightning 21955 | -6/Hub_04(d) | Destroyed Lightning 21977 | -6/Hub_04(d) | Destroyed Lightning 21993 | -6/Hub_04(d) | Found Prototype Device 21994 | -6/Hub_04(d) | Identified Exp. Phase Shifter 22014 | -6/Hub_04(d) | Destroyed Lightning 22022 | -6/Hub_04(d) | Found Prototype Energy Cannon 22025 | -6/Hub_04(d) | Spotted Lightning 22029 | -6/Hub_04(d) | Spotted Lightning 22030 | -6/Hub_04(d) | Spotted Lightning 22031 | -6/Hub_04(d) | Found Exp. Targeting Computer 22042 | -6/Hub_04(d) | Destroyed Lightning 22045 | -6/Hub_04(d) | Destroyed Lightning 22056 | -6/Hub_04(d) | Destroyed Lightning 22072 | -6/Hub_04(d) | Found Exp. Targeting Computer 22095 | -6/Hub_04(d) | Found Prototype Energy Cannon 22112 | -6/Hub_04(d) | Found Prototype Device 22112 | -6/Hub_04(d) | Identified Exp. EM Disruption Field 22129 | -6/Hub_04(d) | Spotted Lightning 22129 | -6/Hub_04(d) | Spotted Lightning 22129 | -6/Hub_04(d) | Spotted Lightning 22138 | -6/Hub_04(d) | Destroyed Lightning 22146 | -6/Hub_04(d) | Destroyed Lightning 22149 | -6/Hub_04(d) | Destroyed Lightning 22170 | -6/Hub_04(d) | Found Exp. Phase Shifter 22173 | -6/Hub_04(d) | Found Exp. Targeting Computer 22218 | -6/Hub_04(d) | Found Exp. Targeting Computer 22328 | -6/Hub_04(d) | Discovered new exit (range 13) 22353 | -6/Hub_04(d) | Network Hub disabled 22353 | -6/Hub_04(d) | Network Hub disabled 22459 | -6/Hub_04(d) | First assault squad dispatched 22827 | -6/Hub_04(d) | Garrison activated, responded to threat 22916 | -6/Hub_04(d) | Entered Garrison 23009 | -6/Garrison | Triggered checkpoint 23060 | -6/Garrison | Destroyed 7 combat bots 23316 | -6/Garrison | Triggered checkpoint 23379 | -6/Garrison | Core integrity fell below 50% 23434 | -6/Garrison | Destroyed 10 combat bots 23663 | -6/Garrison | Discovered new exit (range 10) 23724 | -6/Garrison | Rewired B-86 Titan 23861 | -6/Garrison | Destroyed Titan 5a 23904 | -6/Garrison | Triggered checkpoint 23937 | -6/Garrison | Expanded RIF knowledge: Watcher Feeds 24082 | -6/Garrison | Entered Factory 24082 | -5/Factory | Evolved 2 slots: Utility x2 24122 | -5/Factory | Discovered new exit (range 3) 24300 | -5/Factory | Repaired Centrium Heavy Treads 24351 | -5/Factory | Repaired Adv. KE Penetrator 24382 | -5/Factory | First assault squad dispatched 24406 | -5/Factory | Repaired Centrium Heavy Treads 24497 | -5/Factory | Repaired Adv. KE Penetrator 24983 | -5/Factory | Sucked down chute 24983 | -5/Factory | Entered Waste 25012 | -5/Waste | Spotted C-40 Crusher 25029 | -5/Waste | Spotted C-40 Crusher 25048 | -5/Waste | Crushed by Compactor (1 part destroyed, 1 dropped) 25051 | -5/Waste | Destroyed C-40 Crusher 25063 | -5/Waste | Spotted C-40 Crusher 25126 | -5/Waste | Destroyed C-40 Crusher 25134 | -5/Waste | Destroyed C-40 Crusher 25142 | -5/Waste | Spotted C-40 Crusher 25149 | -5/Waste | Destroyed C-40 Crusher 25155 | -5/Waste | Spotted C-40 Crusher 25158 | -5/Waste | Destroyed C-40 Crusher 25268 | -5/Waste | Spotted C-40 Crusher 25271 | -5/Waste | Destroyed C-40 Crusher 25295 | -5/Waste | Identified EMDS 25380 | -5/Waste | Discovered new exit (range 11) 25516 | -5/Waste | Warlord forces began an assault 25567 | -5/Waste | Murdered 6 allies 25886 | -5/Waste | Entered Factory 25886 | -5/Factory | Accompanied by 11 allies 26082 | -5/Factory | Fabricated Hyp. Railgun? 26355 | -5/Factory | Garrison activated, responded to threat 26366 | -5/Factory | Repaired Adv. KE Penetrator 26393 | -5/Factory | Lost 5 allies 26430 | -5/Factory | Identified exit to Garrison 26510 | -5/Factory | Repaired Broken Adv. KE Penetrator 26547 | -5/Factory | Entered Garrison 26547 | -5/Garrison | Accompanied by 6 allies 26656 | -5/Garrison | Expanded RIF knowledge: Structural Interface 26836 | -5/Garrison | Spotted B-75 Beast 26842 | -5/Garrison | Triggered checkpoint 26857 | -5/Garrison | Destroyed B-75 Beast 26868 | -5/Garrison | Triggered checkpoint 26906 | -5/Garrison | Lost 5 allies 26911 | -5/Garrison | Destroyed 8 combat bots 26987 | -5/Garrison | Triggered checkpoint 27093 | -5/Garrison | Discovered new exit (range 30) 27093 | -5/Garrison | Discovered new exit (range 31) 27093 | -5/Garrison | Discovered new exit (range 79) 27108 | -5/Garrison | Garrison Relay disabled 27277 | -5/Garrison | Learned Factory security intel 27412 | -5/Garrison | H-XX Assembler disabled 27471 | -5/Garrison | Entered Factory 27471 | -4/Factory | Evolved 2 slots: Power x1, Utility x1 27638 | -4/Factory | Identified exit to Upper Caves 27638 | -4/Factory | Identified exit to Armory 27944 | -4/Factory | Repaired Centrium Heavy Treads 28348 | -4/Factory | Spotted B-86 Titan 28546 | -4/Factory | Destroyed B-86 Titan 28721 | -4/Factory | First assault squad dispatched 28774 | -4/Factory | Entered Armory 28931 | -4/Armory | Found Fusion Bomb Launcher 28960 | -4/Armory | Found Gamma Bomb Array 29164 | -4/Armory | Repaired Adv. KE Penetrator 29215 | -4/Armory | Repaired Exp. EM Disruption Field 29221 | -4/Armory | Repaired Adv. KE Penetrator 29274 | -4/Armory | First assault squad dispatched 29295 | -4/Armory | Repaired Broken Centrium Heavy Treads 29340 | -4/Armory | Lost 5 allies 29380 | -4/Armory | Repaired Railgun 29464 | -4/Armory | Repaired Hvy. Treads 29885 | -4/Armory | Assisted by bots powering up and referring to "LRC-V3" 30087 | -4/Armory | Lost 7 allies 30158 | -4/Armory | Fabricated Exp. Weapon Shielding (x1) 30169 | -4/Armory | Lost 4 allies 30343 | -4/Armory | Fabricated Adv. Cloaking Device? 30448 | -4/Armory | Fabricated Lgt. Quantum Reactor (x2) 31026 | -4/Armory | Fabricated Neutron Missile Launcher (x1) 31118 | -4/Armory | Destroyed 7 combat bots 31124 | -4/Armory | Lost 5 allies 31143 | -4/Armory | Fabricated Hyp. Railgun (x2) 31375 | -4/Armory | Destroyed 7 combat bots 31741 | -4/Armory | High security lockdown imminent 31821 | -4/Armory | High security lockdown engaged 31826 | -4/Armory | Discovered new exit (range 4) 31863 | -4/Armory | Identified exit to Lab 31864 | -4/Armory | Entered Lab 31864 | -4/Lab | Discovered new exit (range 9) 31876 | -4/Lab | Identified exit to Research 31883 | -4/Lab | Hidden lab's door opened automatically 31883 | -4/Lab | Sensor layout match revealed 31884 | -4/Lab | Gained access to the hidden lab's interior 31992 | -4/Lab | Found Alien Artifact 31992 | -4/Lab | Identified Integrated Dissipator 31992 | -4/Lab | Installed Integrated Dissipator, increased core heat dissipation (+20) 31999 | -4/Lab | Found Alien Artifact 31999 | -4/Lab | Identified Core Expander 31999 | -4/Lab | Installed Core Expander, added new Weapon slot 32022 | -4/Lab | Found Alien Artifact 32081 | -4/Lab | Found Prototype Hackware 32184 | -4/Lab | Found Prototype Special Weapon 32184 | -4/Lab | Identified Gui. Remote Datajack 32293 | -4/Lab | Found Alien Artifact 32336 | -4/Lab | Disabled Active System Cloaker 32342 | -4/Lab | MAIN.C forces arrive to investigate 32505 | -4/Lab | Found Prototype Energy Cannon 32509 | -4/Lab | Found Prototype Energy Cannon 32551 | -4/Lab | Found Prototype Protection 32693 | -4/Lab | Build established: Hacker-Gunner 32853 | -4/Lab | Identified Exp. Powered Armor 32857 | -4/Lab | Identified Potential Cannon (x2) 32897 | -4/Lab | Entered Research 32897 | -3/Research | Evolved 2 slots: Propulsion x2 32897 | -3/Research | Identified Quantum Router 32918 | -3/Research | Identified exit to Quarantine 32945 | -3/Research | Identified Core Reset Matrix 32945 | -3/Research | Identified Transdimensional Reconstructor 32984 | -3/Research | Found Prototype Launcher 32984 | -3/Research | Identified Adv. Micro-nuke Launcher 33064 | -3/Research | Repaired Arm. Heavy Treads 33097 | -3/Research | Revision forces began assault on 0b10 33099 | -3/Research | Repaired Hyp. Railgun 33104 | -3/Research | Met up with Revision 17++ 33150 | -3/Research | Repaired Adv. KE Penetrator 33171 | -3/Research | Build established: Wizard-Gunner 33176 | -3/Research | Repaired Adv. Sensor Array 33242 | -3/Research | Central database locked down 33485 | -3/Research | Spotted B-86 Titan 33491 | -3/Research | Fabricated Hyp. Railgun (x2) 33597 | -3/Research | Research terminal network offline 33643 | -3/Research | Build established: Hacker-Gunner 33695 | -3/Research | Spotted B-86 Titan 34047 | -3/Research | Build established: Scavenger-Gunner 34212 | -3/Research | Entered Quarantine 34286 | -3/Quarantine | Found Alien Artifact 34491 | -3/Quarantine | Found Prototype Device 34491 | -3/Quarantine | Identified Adv. Kinecellerator 34537 | -3/Quarantine | Found Adv. Kinecellerator 34607 | -3/Quarantine | Repaired Adv. Weapon Cycler 34704 | -3/Quarantine | Found Prototype Processor 34704 | -3/Quarantine | Identified Spectral Analyzer 35128 | -3/Quarantine | Found Alien Slashing Weapon 35128 | -3/Quarantine | Identified Sigix Broadsword 35161 | -3/Quarantine | Cryocooling Duct disabled 35176 | -3/Quarantine | Ambient heat levels rising (+20) 35176 | -3/Quarantine | Non-combat units ordered to evacuate 35451 | -3/Quarantine | Found Alien Artifact 35451 | -3/Quarantine | Identified Phase Armor 35521 | -3/Quarantine | Repaired Antimatter Reactor 35560 | -3/Quarantine | Repaired Hyp. Railgun 35595 | -3/Quarantine | Repaired Hyp. Railgun 35625 | -3/Quarantine | Repaired Rnf. Fission Core 35652 | -3/Quarantine | Repaired Broken Lrn. Tractor Beam? 35692 | -3/Quarantine | Discovered new exit (range 15) 35712 | -3/Quarantine | First assault squad dispatched 35716 | -3/Quarantine | Cryocooling Duct disabled 35731 | -3/Quarantine | Ambient heat levels rising (+20) 35731 | -3/Quarantine | Combat units ordered to evacuate 35831 | -3/Quarantine | Quarantine Guard activated 35836 | -3/Quarantine | Spotted Quarantine Guard 35839 | -3/Quarantine | Spotted Quarantine Guard 35840 | -3/Quarantine | Destroyed 13 combat bots 35841 | -3/Quarantine | Spotted Quarantine Guard 35850 | -3/Quarantine | Spotted Quarantine Guard 35854 | -3/Quarantine | Destroyed Quarantine Guard 35856 | -3/Quarantine | Spotted Quarantine Guard 35858 | -3/Quarantine | Spotted Quarantine Guard 35860 | -3/Quarantine | Spotted Quarantine Guard 35861 | -3/Quarantine | Destroyed Quarantine Guard 35861 | -3/Quarantine | Destroyed Quarantine Guard 35864 | -3/Quarantine | Destroyed Quarantine Guard 35864 | -3/Quarantine | Spotted Quarantine Guard 35865 | -3/Quarantine | Spotted Quarantine Guard 35866 | -3/Quarantine | Warped through subspace 35943 | -3/Quarantine | Destroyed Quarantine Guard 35976 | -3/Quarantine | Spotted Quarantine Guard 36027 | -3/Quarantine | Destroyed Quarantine Guard 36200 | -3/Quarantine | Build established: Scavenger-Skirmisher 36408 | -3/Quarantine | Destroyed Quarantine Guard 36426 | -3/Quarantine | Identified exit to Research 36584 | -3/Quarantine | Found Prototype Launcher 36584 | -3/Quarantine | Identified Hellfire Missile Launcher 36599 | -3/Quarantine | Destroyed Quarantine Guard 36603 | -3/Quarantine | Spotted Quarantine Guard 36610 | -3/Quarantine | Destroyed Quarantine Guard 36626 | -3/Quarantine | Destroyed Quarantine Guard 36630 | -3/Quarantine | Build established: Scavenger-Gunner 36968 | -3/Quarantine | Destroyed Quarantine Guard 37972 | -3/Quarantine | Spotted Fortress 38093 | -3/Quarantine | Discovered new exit (range 5) 38109 | -3/Quarantine | Destroyed Quarantine Guard 38147 | -3/Quarantine | Identified exit to Section 7 38390 | -3/Quarantine | Entered Section 7 38539 | -3/Section 7 | Found Alien Artifact 38539 | -3/Section 7 | Identified Spacefold Activator 38642 | -3/Section 7 | Assimilated H-71 Marshal with FLK Orb 39357 | -3/Section 7 | Found Alien Artifact 39478 | -3/Section 7 | Spotted B-86 Titan 39650 | -3/Section 7 | Identified Integrated Mediator 39650 | -3/Section 7 | Identified Subatomic Replicator 39650 | -3/Section 7 | Installed Integrated Mediator, increased core attachment efficiency 39740 | -3/Section 7 | Destroyed B-86 Titan 39805 | -3/Section 7 | Found Integrated Dissipator 39805 | -3/Section 7 | Installed Integrated Dissipator, increased core heat dissipation (+20) 40350 | -3/Section 7 | Spotted Executioner 40353 | -3/Section 7 | Spotted Executioner 40374 | -3/Section 7 | Destroyed Executioner 40379 | -3/Section 7 | Destroyed Executioner 40414 | -3/Section 7 | Found Corrupted Exp. Core Analyzer 40450 | -3/Section 7 | Found Transdimensional Reconstructor 40530 | -3/Section 7 | Spotted B-99 Colossus 40548 | -3/Section 7 | Destroyed B-99 Colossus 40609 | -3/Section 7 | Scanned by Researcher 40610 | -3/Section 7 | Intercept squad dispatched 40624 | -3/Section 7 | Spotted Tracker 40632 | -3/Section 7 | Destroyed Tracker 40660 | -3/Section 7 | Spotted Combat Programmer 40669 | -3/Section 7 | Destroyed Combat Programmer 40724 | -3/Section 7 | Found Alien Artifact 40724 | -3/Section 7 | Identified LRC Matter Compressor 40724 | -3/Section 7 | Installed LRC Matter Compressor, increased matter storage capacity (+125) 40727 | -3/Section 7 | Found Alien Artifact 40727 | -3/Section 7 | Identified LRC Armor 40727 | -3/Section 7 | Installed LRC Armor, increased core integrity (+250) 40834 | -3/Section 7 | Found Alien Artifact 40834 | -3/Section 7 | Identified Integrity Redistributor 40834 | -3/Section 7 | Used Integrity Redistributor, redistributed integrity from core (-237) 40848 | -3/Section 7 | Found Integrity Redistributor 40852 | -3/Section 7 | Found Integrity Redistributor 40854 | -3/Section 7 | Intercept squad dispatched 40870 | -3/Section 7 | Spotted Tracker 40877 | -3/Section 7 | Destroyed Tracker 40890 | -3/Section 7 | First assault squad dispatched 40906 | -3/Section 7 | Spotted Combat Programmer 40912 | -3/Section 7 | Destroyed Combat Programmer 41001 | -3/Section 7 | Destroyed 9 combat bots 41084 | -3/Section 7 | DAS Turret deployed 41084 | -3/Section 7 | High security lockdown imminent 41164 | -3/Section 7 | High security lockdown engaged 41259 | -3/Section 7 | Found Alien Energy Gun 41259 | -3/Section 7 | Identified Sigix Sheargun 41269 | -3/Section 7 | Found Sigix Sheargun 41284 | -3/Section 7 | Spotted Striker 41284 | -3/Section 7 | Spotted Striker 41288 | -3/Section 7 | Destroyed Striker 41288 | -3/Section 7 | Destroyed Striker 41303 | -3/Section 7 | Spotted Striker 41304 | -3/Section 7 | Spotted Striker 41307 | -3/Section 7 | Destroyed Striker 41312 | -3/Section 7 | Destroyed Striker 41333 | -3/Section 7 | System corruption reached 10% 41390 | -3/Section 7 | Destroyed 19 combat bots 41420 | -3/Section 7 | Spotted Investigator 41431 | -3/Section 7 | Destroyed Investigator 41495 | -3/Section 7 | Destroyed 17 combat bots 41610 | -3/Section 7 | Destroyed Striker 41631 | -3/Section 7 | Destroyed 24 combat bots 41764 | -3/Section 7 | Spotted Striker 41769 | -3/Section 7 | Destroyed Striker 41772 | -3/Section 7 | System corruption reached 30% 41776 | -3/Section 7 | Spotted Executioner 41787 | -3/Section 7 | Sterilization system engaged 41787 | -3/Section 7 | Non-combat units ordered to evacuate 41798 | -3/Section 7 | Destroyed Executioner 41828 | -3/Section 7 | Destroyed Executioner 41851 | -3/Section 7 | Destroyed 31 combat bots 41857 | -3/Section 7 | Found Sigix Sheargun 41887 | -3/Section 7 | Combat units ordered to evacuate 41955 | -3/Section 7 | Spotted Executioner 41955 | -3/Section 7 | Spotted Executioner 41966 | -3/Section 7 | Core integrity fell below 50% 41970 | -3/Section 7 | Destroyed Executioner 41979 | -3/Section 7 | Destroyed Executioner 42013 | -3/Section 7 | Found Exp. Targeting Computer 42017 | -3/Section 7 | Found Exp. Targeting Computer 42032 | -3/Section 7 | Found Exp. Core Analyzer 42087 | -3/Section 7 | Ambient heat levels rising (+10) 42179 | -3/Section 7 | Found Sigix Sheargun 42182 | -3/Section 7 | Found Sigix Sheargun 42185 | -3/Section 7 | Used Integrity Redistributor, redistributed integrity to core (+375) 42189 | -3/Section 7 | Used Subatomic Replicator to replicate Integrity Redistributor 42195 | -3/Section 7 | Used Integrity Redistributor, redistributed integrity from core (-605) 42237 | -3/Section 7 | Ambient heat levels rising (+10) 42317 | -3/Section 7 | Found Corrupted Adv. Kinecellerator 42387 | -3/Section 7 | Ambient heat levels rising (+10) 42522 | -3/Section 7 | Entered Research 42522 | -2/Research | Evolved 2 slots: Power x1, Weapon x1 42694 | -2/Research | Destroyed 9 combat bots 42739 | -2/Research | Assimilated H-81 Overseer with FLK Orb 42775 | -2/Research | High security lockdown imminent 42855 | -2/Research | High security lockdown engaged 43059 | -2/Research | Spotted Investigator 43081 | -2/Research | Destroyed Investigator 43102 | -2/Research | Destroyed 11 combat bots 43171 | -2/Research | Destroyed Striker 43177 | -2/Research | Destroyed Striker 43188 | -2/Research | Spotted Striker 43192 | -2/Research | Destroyed Striker 43246 | -2/Research | Spotted Striker 43281 | -2/Research | System corruption reached 10% 43283 | -2/Research | Destroyed Striker 43290 | -2/Research | Used Integrity Redistributor, redistributed integrity from core (-334) 43294 | -2/Research | Spotted Investigator 43343 | -2/Research | Destroyed Investigator 43375 | -2/Research | Destroyed 44 combat bots 43500 | -2/Research | Spotted Striker 43500 | -2/Research | Destroyed Striker 43525 | -2/Research | Spotted Striker 43531 | -2/Research | Destroyed Striker 43592 | -2/Research | Destroyed 29 combat bots 43658 | -2/Research | Spotted Striker 43660 | -2/Research | Spotted Executioner 43664 | -2/Research | Destroyed Striker 43671 | -2/Research | Destroyed Executioner 43706 | -2/Research | Destroyed 11 combat bots 43713 | -2/Research | Spotted Executioner 43715 | -2/Research | Destroyed Executioner 43732 | -2/Research | Sterilization system engaged 43732 | -2/Research | Non-combat units ordered to evacuate 43751 | -2/Research | Spotted Striker 43752 | -2/Research | Destroyed Striker 43832 | -2/Research | Combat units ordered to evacuate 43838 | -2/Research | Destroyed 25 combat bots 44032 | -2/Research | Ambient heat levels rising (+10) 44182 | -2/Research | Ambient heat levels rising (+10) 44239 | -2/Research | Build established: Scavenger-Executioner 44332 | -2/Research | Ambient heat levels rising (+10) 44482 | -2/Research | Ambient heat levels rising (+10) 44632 | -2/Research | Ambient heat levels rising (+10) 44782 | -2/Research | Ambient heat levels rising (+10) 44932 | -2/Research | Ambient heat levels rising (+10) 45082 | -2/Research | Ambient heat levels rising (+10) 45186 | -2/Research | Discovered new exit (range 14) 45232 | -2/Research | Ambient heat levels rising (+10) 45382 | -2/Research | Ambient heat levels rising (+10) 45532 | -2/Research | Ambient heat levels rising (+10) 45682 | -2/Research | Ambient heat levels rising (+10) 45690 | -2/Research | Entered Access 45690 | -1/Access | Evolved 2 slots: Utility x2 45784 | -1/Access | Found Unknown Protection 45784 | -1/Access | Identified Hvy. Reflective Plating 45832 | -1/Access | Garrison activated, responded to threat 45940 | -1/Access | First assault squad dispatched 46092 | -1/Access | Destroyed 13 combat bots 46099 | -1/Access | High security lockdown imminent 46103 | -1/Access | Spotted B-99 Colossus 46113 | -1/Access | Destroyed B-99 Colossus 46164 | -1/Access | Found Prototype Ballistic Gun 46169 | -1/Access | Destroyed 12 combat bots 46179 | -1/Access | High security lockdown engaged 46208 | -1/Access | Discovered new exit (range 8) 46224 | -1/Access | Spotted B-99 Colossus 46224 | -1/Access | Spotted B-99 Colossus 46229 | -1/Access | Destroyed B-99 Colossus 46231 | -1/Access | Destroyed B-99 Colossus 46238 | -1/Access | Found Prototype Ballistic Gun 46238 | -1/Access | Identified Multirail (x2) 46265 | -1/Access | Found Multirail 46268 | -1/Access | Found Multirail 46272 | -1/Access | Destroyed 10 combat bots 46288 | -1/Access | Entered Command 46423 | -1/Command | Spotted B-99 Colossus 46427 | -1/Command | Destroyed B-99 Colossus 46450 | -1/Command | Found Multirail 46538 | -1/Command | First assault squad dispatched 46549 | -1/Command | Spotted M Guard 46549 | -1/Command | Spotted M Guard 46549 | -1/Command | Spotted Combat Programmer 46553 | -1/Command | Spotted Combat Programmer 46553 | -1/Command | Assimilated Combat Programmer with FLK Orb 46556 | -1/Command | Destroyed Combat Programmer 46556 | -1/Command | Destroyed M Guard 46560 | -1/Command | Destroyed Combat Programmer 46564 | -1/Command | Destroyed M Guard 46564 | -1/Command | All MAIN.C guards destroyed 46587 | -1/Command | Found Prototype Reactor 46587 | -1/Command | Identified Zero-point Reactor 46592 | -1/Command | Found Prototype Device 46592 | -1/Command | Identified AEGIS Remote Shield 46598 | -1/Command | Found Zero-point Reactor 46601 | -1/Command | Found Prototype Protection 46601 | -1/Command | Identified Hvy. Regenerative Plating 46617 | -1/Command | High security lockdown imminent 46653 | -1/Command | Destroyed 10 combat bots 46688 | -1/Command | Met MAIN.C 46697 | -1/Command | High security lockdown engaged 46710 | -1/Command | Destroyed MAIN.C Shell 46713 | -1/Command | MAIN.C activated Command garrisons 46714 | -1/Command | 0b10 Conduit disabled 46726 | -1/Command | Destroyed MAIN.C 47376 | -1/Command | Found Prototype Protection 47376 | -1/Command | Identified Centrium Heavy Armor Plating 47958 | -1/Command | Discovered new exit (range 7) 48082 | -1/Command | Found Prototype Device 48082 | -1/Command | Identified Exp. System Purifier 48085 | -1/Command | Found Prototype Device 48085 | -1/Command | Identified Exp. Weapon Cycler 48091 | -1/Command | Found Prototype Processor 48091 | -1/Command | Identified Exp. Melee Analysis Suite 48109 | -1/Command | Found Prototype Ballistic Cannon 48109 | -1/Command | Identified Omega Cannon 48137 | -1/Command | Found Exp. Targeting Computer 48145 | -1/Command | Found Zero-point Reactor 48147 | -1/Command | Found Zero-point Reactor 48153 | -1/Command | Found Adv. Kinecellerator 48436 | -1/Command | Found Unknown Device 48436 | -1/Command | Identified Quantum Capacitor 49121 | -1/Command | Found Multirail 49124 | -1/Command | Found Multirail 49523 | -1/Command | Found Prototype Processor 49523 | -1/Command | Identified Exp. Target Analyzer 49527 | -1/Command | Found Corrupted Multirail 49535 | -1/Command | Found Multirail 50159 | -1/Command | Warped through subspace to slip node 50159 | -1/Command | Discovered new exit (range 4) 50166 | -1/Command | Entered Access_0 50168 | -1/Access_0 | Met Architect 50172 | -1/Access_0 | Architect warped through subspace 50176 | -1/Access_0 | Destroyed A8 50210 | -1/Access_0 | Architect warped through subspace 50233 | -1/Access_0 | Destroyed 9 combat bots 50245 | -1/Access_0 | Architect warped through subspace 50275 | -1/Access_0 | Architect warped through subspace 50301 | -1/Access_0 | Architect warped through subspace 50326 | -1/Access_0 | Architect warped through subspace 50362 | -1/Access_0 | Architect warped through subspace 50393 | -1/Access_0 | Architect warped through subspace 50410 | -1/Access_0 | Found Prototype Device 50410 | -1/Access_0 | Identified Desublimator 50425 | -1/Access_0 | Architect warped through subspace 50454 | -1/Access_0 | Architect warped through subspace 50481 | -1/Access_0 | Architect warped through subspace 50503 | -1/Access_0 | Architect warped through subspace 50518 | -1/Access_0 | Subspace Access Node disabled 50529 | -1/Access_0 | Architect warped through subspace 50548 | -1/Access_0 | Architect warped through subspace 50569 | -1/Access_0 | Architect warped through subspace 50582 | -1/Access_0 | A6 warped into view 50599 | -1/Access_0 | Architect warped through subspace 50607 | -1/Access_0 | Found Prototype Device 50607 | -1/Access_0 | Identified Femtoactuators 50619 | -1/Access_0 | Architect warped through subspace 50655 | -1/Access_0 | Architect warped through subspace 50677 | -1/Access_0 | Architect warped through subspace 50694 | -1/Access_0 | Architect warped through subspace 50705 | -1/Access_0 | Subspace Access Node disabled 50718 | -1/Access_0 | Architect warped through subspace 50755 | -1/Access_0 | Architect warped through subspace 50766 | -1/Access_0 | Architect warped through subspace 50794 | -1/Access_0 | Architect warped through subspace 50816 | -1/Access_0 | Architect warped through subspace 50826 | -1/Access_0 | Subspace Access Node disabled 50848 | -1/Access_0 | Core integrity fell below 50% 50864 | -1/Access_0 | A5 warped into view 50883 | -1/Access_0 | Core integrity fell below 20% 50893 | -1/Access_0 | Found Sigix Broadsword 50900 | -1/Access_0 | Destroyed by Enhanced Hunter with Hypervelocity Linear Accelerator Last Messages --------------- 50867_ Penetrated by HV Slug. 50868_ Acquired 10 matter. 50869_ Penetrated by HV Slug. 50882_ Penetrated by Quantum Shear. 50882_ Exp. Biometal Leg destroyed. 50882_ Penetrated by Quantum Shear. 50882_ Quantum Shear penetrates Wall. 50892_ Dropped Exp. Weapon Cycler. 50892_ Spacefolded through Workstation. 50893_ Acquired Sigix Broadsword. 50895_ Spacefolded through Workstation. 50896_ HV Slug penetrates Wall. 50896_ Penetrated by HV Slug. 50898_ Quantum Shear penetrates Wall. 50898_ Penetrated by HV Slug. 50898_ HV Slug penetrates Wall. 50899_ Penetrated by HV Slug. 50900_ HV Slug penetrates Wall. 50900_ Exp. Energy Well destroyed. 50900_ Penetrated by HV Slug. Map ----- +----------------------------------------------------+ | ?????????????????????????????????????????????????? | | ?????????????????????????????????????????????????? | | ?????????????????????????????????????????????????? | | ?????????????????????????????????????????????????? | | ?????????????????????????????????????????????????? | | ?????????????????????????????????????????????????? | | ?????????????????????????????????????????????????? | | ?????????????????????????????????????????????????? | | ?????????????????????????????????????????????????? | | ?????????????????????????????????????????????????? | | ?????????????????????????????????????????????????? | | ?????????????????????????????????????????????????? | | ?????????????????????????????????????????????????? | | ?????????????????????????????????????????????????? | | ?????????????????????????????????????????????????? | | ?????????????????????????????????????????????????? | | ?????????????????????????????????????????????????? | | ??????????????????????????###????????????????????? | | ??????????????????????????"/"???##?????#?????????? | | ???????????????????????##"""""#? ##### ##????????? | | ??????????????????????##;" ! #? ?????????? | | ??????????????????????# ;; ## ????????????? | | ???????????????????????#; # #??????????????? | | ???????????????????????#;%% #???????????????? | | ????????????????????????# #???????????????? | | ???????????????????????##@ #??????#????????? | | ######?????????? ??????# ###### #????????? | | #???????# ### #????????? | | ?????????????# ##???????? | | ???????????????# #???????? | | #????????????????# ### #; ####???????? | | #????????????#????# #??###; ######??????????? | | ##??????????## ??## ?????# h ##?######???????? | | #??????????# ## ?????#;; g ###"## ####????? | | ##????????? ##???? ;; p "" #????? | | #???????? #??? ;; ##????? | | ##??????? ####;;;h ;; #?????? | | ##???????# h ;# #????? | | #?????????????# ##????? | | ##????????????## ## ######### ##?????? | | ######???????????##" "#??????## ##??????? | | """# ????????????# # "#???????# ##???????? | | "# ##??????????# # ##??????? ##????????? | | " ## #???????### # "#???????####?????????? | | "#" #?# ##???### ## "#????????????????????? | | " " ##?# # ??# # ## ##????????????????????? | | " " "#### ### " #?????????????????????? | | # "" #"" "% #????#????????????????? | | # " "" !* ""% """ ##???????????????? | | % " !![%="" """ ##??????????????? | +----------------------------------------------------+ Best States ------------- Heat Dissipation 182 Coolant Potential 220 Energy Generation 122 Energy Capacity 1230 Matter Stores 500 Matter Capacity 800 Sight Range 23 Robot Scan Range 16 Terrain Scan Density 10 Jamming Range 16 Cloak Strength 4 Power Amplification 40 Additional Mass Support 12 Armor Coverage 1200 Resistance: KI 30 Resistance: TH 25 Resistance: EM 75 Weapon Cycling 30 Phase Shifting 20 Evasion (%) 60 Targeting Accuracy 32 Target Analysis 10 Core Analysis 12 Armor Integrity Analysis 40 Recoil Reduction 6 Matter Filtering 50 Kinecelleration 50 Salvage Targeting 1 Offensive Hacking 36 Defensive Hacking 25 Relay Coupler Types 1 Relay Coupler Value 38 Authchip Count 8 Item Schematics ----------------- Hcp. Storage Unit | -9/Materials | Hacked Imp. Targeting Computer | -9/Materials | Hacked Lrn. Tractor Beam | -8/Recycling | Hacked Adv. Weapon Cycler | -6/Factory | Scanalyzed Weapon Mount | -6/Extension | Hacked Adv. Signal Interpreter | -6/Extension | Hacked Hyp. Railgun | -5/Factory | Scanalyzed Neutron Missile Launcher | -4/Factory | Hacked Exp. Weapon Shielding | -4/Armory | Hacked Imp. Heavy Siege Treads | -3/Research | Hacked Exp. Utility Shielding | -3/Research | Hacked Adv. Force Field | -3/Research | Hacked Com. HERF Cannon | -3/Research | Hacked Tesla Bomb Launcher | -3/Quarantine | Archive Tri-rail Accelerator | -3/Quarantine | Archive Adv. System Shield | -3/Quarantine | Hacked Gravity Neutralizer | -3/Section 7 | Archive Cld. Phase Gun | -3/Section 7 | Archive Adv. Gravity Neutralizer | -3/Section 7 | Archive Diametric Drive | -3/Section 7 | Archive Lrn. Phase Cannon | -3/Section 7 | Archive Exp. Thermal Generator | -3/Section 7 | Archive Adv. KE Penetrator | -3/Section 7 | Archive Exp. Thermal Shield | -3/Section 7 | Archive Exp. Heat Sink | -3/Section 7 | Archive Coolant Network | -3/Section 7 | Archive Hvy. Dispersion Rifle | -3/Section 7 | Archive Hvy. Neutron Cannon | -3/Section 7 | Archive Centrium Heavy Treads | -3/Section 7 | Archive Adv. Micro-nuke Launcher | -3/Section 7 | Archive Electron Diverter | -3/Section 7 | Archive Adv. Thermal Defense Suite | -3/Section 7 | Archive Adv. Variable Charge Gun | -3/Section 7 | Archive Shock Maul | -3/Section 7 | Archive Imp. Energy Well | -3/Section 7 | Archive Cld. Proton Cannon | -3/Section 7 | Archive Helical Railgun | -3/Section 7 | Archive Enh. Armored Medium Treads | -3/Section 7 | Archive Particle Accelerator | -3/Section 7 | Archive Exp. Signal Interpreter | -3/Section 7 | Archive Enh. Coil Gun | -3/Section 7 | Archive Robot Schematics ------------------ H-55 Commando | -8/Recycling | Hacked Y-72 Warden | -3/Research | Hacked A-27 Freighter | -3/Quarantine | Archive K-01 Serf | -3/Section 7 | Archive H-77 Assassin | -3/Section 7 | Archive R-10 Processor | -3/Section 7 | Archive G-67 Veteran | -3/Section 7 | Archive R-06 Scavenger | -3/Section 7 | Archive Fabricated ------------ Railgun | x2 | -6/Factory | Preloaded H-55 Commando | x2 | -6/Factory | Authchip Adv. Weapon Cycler | x2 | -6/Factory | Authchip Hyp. Railgun | x2 | -5/Factory Exp. Weapon Shielding | x1 | -4/Armory Adv. Cloaking Device | x1 | -4/Armory | Preloaded Lgt. Quantum Reactor | x2 | -4/Armory | Preloaded Neutron Missile Launcher | x1 | -4/Armory Hyp. Railgun | x2 | -4/Armory Hyp. Railgun | x2 | -3/Research Alien Tech Used ----------------- Integrated Dissipator Core Expander Sigix Broadsword Phase Armor Transdimensional Reconstructor Spacefold Activator Integrated Mediator LRC Matter Compressor LRC Armor Integrity Redistributor Sigix Sheargun Subatomic Replicator Achievements -------------- None Challenges ------------ None Game ------ Seed RemoteImprinterArray Manual? 0 Play Time 08:11:27 Cumulative 507.7 hours Start 2024.02.02 @ 13:48:36 End 2024.02.03 @ 00:29:53 Sessions 3 Manual Loads 0 Difficulty Rogue Special Mode None Game No. 176 Rogue 161 Adventurer 15 Explorer 0 Win Type - Total 31 Types 9/3/8/2/2/0/4/2/1 Lore% 92 Gallery% 94 Achievement% 83 Wizard Run 0 Options --------- ASCII 0 Keyboard 0 Movement Numpad Keybinds 0 Fullscreen 1 Font 18/SmallcapsGlow Map View 76x50 Zoom Use 0% Tactical HUD 1 Map Filters NONE Filters NONE Steam 1 RUN: 93b1f432-eccf-4c8c-a30c-98e8f426680e